Workbook

Sheet عملاء
B2: لة | C2: =SUMIF(G5:G5035,1,F5:F5068) -> 8792161.391 | F2: =C2+C3 -> 8792161.391
B3: علية | C3: =SUMIF(G4:G5036,-1,F4:F5069) -> 0 | F3: رصيد
B4: الكود | C4: اسم الحساب | D4: مدين | E4: دائن | F4: الرصيد
B5: 101 | C5: محمد | D5: =SUMIFS(data!$E$3:$E$50016,data!$D$3:$D$50016,C5) -> 370758.03 | E5: =SUMIFS(data!$F$3:$F$50016,data!$D$3:$D$50016,C5) -> 319386.82 | F5: =D5-E5 -> 51371.21 | G5: =SIGN(F5) -> 1
B6: 102 | C6: على | D6: =SUMIFS(data!$E$3:$E$50016,data!$D$3:$D$50016,C6) -> 1299453.615 | E6: =SUMIFS(data!$F$3:$F$50016,data!$D$3:$D$50016,C6) -> 1120155.88 | F6: 179297.735 | G6: =SIGN(F6) -> 1
B7: 103 | C7: محمود | D7: =SUMIFS(data!$E$3:$E$50016,data!$D$3:$D$50016,C7) -> 143877.95 | E7: =SUMIFS(data!$F$3:$F$50016,data!$D$3:$D$50016,C7) -> 142815.75 | F7: 1062.2 | G7: 1
B8: 104 | C8: مصطفى | D8: =SUMIFS(data!$E$3:$E$50016,data!$D$3:$D$50016,C8) -> 14690 | E8: =SUMIFS(data!$F$3:$F$50016,data!$D$3:$D$50016,C8) -> 14690 | F8: 0 | G8: 0
B9: 105 | C9: السيد | D9: =SUMIFS(data!$E$3:$E$50016,data!$D$3:$D$50016,C9) -> 7271 | E9: =SUMIFS(data!$F$3:$F$50016,data!$D$3:$D$50016,C9) -> 7271 | F9: 0 | G9: 0
B10: 106 | C10: عبد الرحمن | D10: =SUMIFS(data!$E$3:$E$50016,data!$D$3:$D$50016,C10) -> 695721.2825 | E10: =SUMIFS(data!$F$3:$F$50016,data!$D$3:$D$50016,C10) -> 695721.28 | F10: 0.002500000177 | G10: 1
B11: 107 | C11: احمد | D11: =SUMIFS(data!$E$3:$E$50016,data!$D$3:$D$50016,C11) -> 406764.5355 | E11: =SUMIFS(data!$F$3:$F$50016,data!$D$3:$D$50016,C11) -> 396781.04 | F11: 9983.4955 | G11: 1
B12: 108 | C12: محمد | D12: =SUMIFS(data!$E$3:$E$50016,data!$D$3:$D$50016,C12) -> 370758.03 | E12: =SUMIFS(data!$F$3:$F$50016,data!$D$3:$D$50016,C12) -> 319386.82 | F12: 51371.21 | G12: 1
B13: 109 | C13: محمود | D13: =SUMIFS(data!$E$3:$E$50016,data!$D$3:$D$50016,C13) -> 143877.95 | E13: =SUMIFS(data!$F$3:$F$50016,data!$D$3:$D$50016,C13) -> 142815.75 | F13: 1062.2 | G13: 1
B14: 110 | C14: السيد | D14: =SUMIFS(data!$E$3:$E$50016,data!$D$3:$D$50016,C14) -> 7271 | E14: =SUMIFS(data!$F$3:$F$50016,data!$D$3:$D$50016,C14) -> 7271 | F14: 0 | G14: 0
B15: 111 | C15: عبد الرحمن | D15: =SUMIFS(data!$E$3:$E$50016,data!$D$3:$D$50016,C15) -> 695721.2825 | E15: =SUMIFS(data!$F$3:$F$50016,data!$D$3:$D$50016,C15) -> 695721.28 | F15: 0.002500000177 | G15: 1
B16: 112 | C16: احمد | D16: =SUMIFS(data!$E$3:$E$50016,data!$D$3:$D$50016,C16) -> 406764.5355 | E16: =SUMIFS(data!$F$3:$F$50016,data!$D$3:$D$50016,C16) -> 396781.04 | F16: 9983.4955 | G16: 1
B17: 113 | C17: العربى | D17: =SUMIFS(data!$E$3:$E$50016,data!$D$3:$D$50016,C17) -> 677196.66 | E17: =SUMIFS(data!$F$3:$F$50016,data!$D$3:$D$50016,C17) -> 662886.345 | F17: 14310.315 | G17: 1
B18: 114 | D18: =SUMIFS(data!$E$3:$E$50016,data!$D$3:$D$50016,C18) -> 1457446.035 | E18: =SUMIFS(data!$F$3:$F$50016,data!$D$3:$D$50016,C18) -> 1399006.59 | F18: 58439.445 | G18: 1
B19: 115 | D19: =SUMIFS(data!$E$3:$E$50016,data!$D$3:$D$50016,C19) -> 1457446.035 | E19: =SUMIFS(data!$F$3:$F$50016,data!$D$3:$D$50016,C19) -> 1399006.59 | F19: 58439.445 | G19: 1
B20: 116 | D20: =SUMIFS(data!$E$3:$E$50016,data!$D$3:$D$50016,C20) -> 1457446.035 | E20: =SUMIFS(data!$F$3:$F$50016,data!$D$3:$D$50016,C20) -> 1399006.59 | F20: 58439.445 | G20: 1
B21: 117 | D21: =SUMIFS(data!$E$3:$E$50016,data!$D$3:$D$50016,C21) -> 1457446.035 | E21: =SUMIFS(data!$F$3:$F$50016,data!$D$3:$D$50016,C21) -> 1399006.59 | F21: 58439.445 | G21: 1
B22: 118 | D22: =SUMIFS(data!$E$3:$E$50016,data!$D$3:$D$50016,C22) -> 1457446.035 | E22: =SUMIFS(data!$F$3:$F$50016,data!$D$3:$D$50016,C22) -> 1399006.59 | F22: 58439.445 | G22: 1
B23: 119 | D23: =SUMIFS(data!$E$3:$E$50016,data!$D$3:$D$50016,C23) -> 1457446.035 | E23: =SUMIFS(data!$F$3:$F$50016,data!$D$3:$D$50016,C23) -> 1399006.59 | F23: 58439.445 | G23: 1
B24: 120 | D24: =SUMIFS(data!$E$3:$E$50016,data!$D$3:$D$50016,C24) -> 1457446.035 | E24: =SUMIFS(data!$F$3:$F$50016,data!$D$3:$D$50016,C24) -> 1399006.59 | F24: 58439.445 | G24: 1
B25: 121 | D25: =SUMIFS(data!$E$3:$E$50016,data!$D$3:$D$50016,C25) -> 1457446.035 | E25: =SUMIFS(data!$F$3:$F$50016,data!$D$3:$D$50016,C25) -> 1399006.59 | F25: 58439.445 | G25: 1
B26: 122 | D26: =SUMIFS(data!$E$3:$E$50016,data!$D$3:$D$50016,C26) -> 1457446.035 | E26: =SUMIFS(data!$F$3:$F$50016,data!$D$3:$D$50016,C26) -> 1399006.59 | F26: 58439.445 | G26: 1
B27: 123 | D27: =SUMIFS(data!$E$3:$E$50016,data!$D$3:$D$50016,C27) -> 1457446.035 | E27: =SUMIFS(data!$F$3:$F$50016,data!$D$3:$D$50016,C27) -> 1399006.59 | F27: 58439.445 | G27: 1
B28: 124 | D28: =SUMIFS(data!$E$3:$E$50016,data!$D$3:$D$50016,C28) -> 1457446.035 | E28: =SUMIFS(data!$F$3:$F$50016,data!$D$3:$D$50016,C28) -> 1399006.59 | F28: 58439.445 | G28: 1
B29: 125 | D29: =SUMIFS(data!$E$3:$E$50016,data!$D$3:$D$50016,C29) -> 1457446.035 | E29: =SUMIFS(data!$F$3:$F$50016,data!$D$3:$D$50016,C29) -> 1399006.59 | F29: 58439.445 | G29: 1
B30: 126 | D30: =SUMIFS(data!$E$3:$E$50016,data!$D$3:$D$50016,C30) -> 1457446.035 | E30: =SUMIFS(data!$F$3:$F$50016,data!$D$3:$D$50016,C30) -> 1399006.59 | F30: 58439.445 | G30: 1
B31: 127 | D31: =SUMIFS(data!$E$3:$E$50016,data!$D$3:$D$50016,C31) -> 1457446.035 | E31: =SUMIFS(data!$F$3:$F$50016,data!$D$3:$D$50016,C31) -> 1399006.59 | F31: 58439.445 | G31: 1
B32: 128 | D32: =SUMIFS(data!$E$3:$E$50016,data!$D$3:$D$50016,C32) -> 1457446.035 | E32: =SUMIFS(data!$F$3:$F$50016,data!$D$3:$D$50016,C32) -> 1399006.59 | F32: 58439.445 | G32: 1
B33: 129 | D33: =SUMIFS(data!$E$3:$E$50016,data!$D$3:$D$50016,C33) -> 1457446.035 | E33: =SUMIFS(data!$F$3:$F$50016,data!$D$3:$D$50016,C33) -> 1399006.59 | F33: 58439.445 | G33: 1
B34: 130 | D34: =SUMIFS(data!$E$3:$E$50016,data!$D$3:$D$50016,C34) -> 1457446.035 | E34: =SUMIFS(data!$F$3:$F$50016,data!$D$3:$D$50016,C34) -> 1399006.59 | F34: 58439.445 | G34: 1
B35: 131 | D35: =SUMIFS(data!$E$3:$E$50016,data!$D$3:$D$50016,C35) -> 1457446.035 | E35: =SUMIFS(data!$F$3:$F$50016,data!$D$3:$D$50016,C35) -> 1399006.59 | F35: 58439.445 | G35: 1
B36: 132 | D36: =SUMIFS(data!$E$3:$E$50016,data!$D$3:$D$50016,C36) -> 1457446.035 | E36: =SUMIFS(data!$F$3:$F$50016,data!$D$3:$D$50016,C36) -> 1399006.59 | F36: 58439.445 | G36: 1
B37: 133 | D37: =SUMIFS(data!$E$3:$E$50016,data!$D$3:$D$50016,C37) -> 1457446.035 | E37: =SUMIFS(data!$F$3:$F$50016,data!$D$3:$D$50016,C37) -> 1399006.59 | F37: 58439.445 | G37: 1
B38: 134 | D38: =SUMIFS(data!$E$3:$E$50016,data!$D$3:$D$50016,C38) -> 1457446.035 | E38: =SUMIFS(data!$F$3:$F$50016,data!$D$3:$D$50016,C38) -> 1399006.59 | F38: 58439.445 | G38: 1
B39: 135 | D39: =SUMIFS(data!$E$3:$E$50016,data!$D$3:$D$50016,C39) -> 1457446.035 | E39: =SUMIFS(data!$F$3:$F$50016,data!$D$3:$D$50016,C39) -> 1399006.59 | F39: 58439.445 | G39: 1
B40: 136 | D40: =SUMIFS(data!$E$3:$E$50016,data!$D$3:$D$50016,C40) -> 1457446.035 | E40: =SUMIFS(data!$F$3:$F$50016,data!$D$3:$D$50016,C40) -> 1399006.59 | F40: 58439.445 | G40: 1
B41: 137 | D41: =SUMIFS(data!$E$3:$E$50016,data!$D$3:$D$50016,C41) -> 1457446.035 | E41: =SUMIFS(data!$F$3:$F$50016,data!$D$3:$D$50016,C41) -> 1399006.59 | F41: 58439.445 | G41: 1
B42: 138 | D42: =SUMIFS(data!$E$3:$E$50016,data!$D$3:$D$50016,C42) -> 1457446.035 | E42: =SUMIFS(data!$F$3:$F$50016,data!$D$3:$D$50016,C42) -> 1399006.59 | F42: 58439.445 | G42: 1
B43: 139 | D43: =SUMIFS(data!$E$3:$E$50016,data!$D$3:$D$50016,C43) -> 1457446.035 | E43: =SUMIFS(data!$F$3:$F$50016,data!$D$3:$D$50016,C43) -> 1399006.59 | F43: 58439.445 | G43: 1
B44: 140 | D44: =SUMIFS(data!$E$3:$E$50016,data!$D$3:$D$50016,C44) -> 1457446.035 | E44: =SUMIFS(data!$F$3:$F$50016,data!$D$3:$D$50016,C44) -> 1399006.59 | F44: 58439.445 | G44: 1
B45: 141 | D45: =SUMIFS(data!$E$3:$E$50016,data!$D$3:$D$50016,C45) -> 1457446.035 | E45: =SUMIFS(data!$F$3:$F$50016,data!$D$3:$D$50016,C45) -> 1399006.59 | F45: 58439.445 | G45: 1
B46: 142 | D46: =SUMIFS(data!$E$3:$E$50016,data!$D$3:$D$50016,C46) -> 1457446.035 | E46: =SUMIFS(data!$F$3:$F$50016,data!$D$3:$D$50016,C46) -> 1399006.59 | F46: 58439.445 | G46: 1
B47: 143 | D47: =SUMIFS(data!$E$3:$E$50016,data!$D$3:$D$50016,C47) -> 1457446.035 | E47: =SUMIFS(data!$F$3:$F$50016,data!$D$3:$D$50016,C47) -> 1399006.59 | F47: 58439.445 | G47: 1
B48: 144 | D48: =SUMIFS(data!$E$3:$E$50016,data!$D$3:$D$50016,C48) -> 1457446.035 | E48: =SUMIFS(data!$F$3:$F$50016,data!$D$3:$D$50016,C48) -> 1399006.59 | F48: 58439.445 | G48: 1
B49: 145 | D49: =SUMIFS(data!$E$3:$E$50016,data!$D$3:$D$50016,C49) -> 1457446.035 | E49: =SUMIFS(data!$F$3:$F$50016,data!$D$3:$D$50016,C49) -> 1399006.59 | F49: 58439.445 | G49: 1
B50: 146 | D50: =SUMIFS(data!$E$3:$E$50016,data!$D$3:$D$50016,C50) -> 1457446.035 | E50: =SUMIFS(data!$F$3:$F$50016,data!$D$3:$D$50016,C50) -> 1399006.59 | F50: 58439.445 | G50: 1
B51: 147 | D51: =SUMIFS(data!$E$3:$E$50016,data!$D$3:$D$50016,C51) -> 1457446.035 | E51: =SUMIFS(data!$F$3:$F$50016,data!$D$3:$D$50016,C51) -> 1399006.59 | F51: 58439.445 | G51: 1
B52: 148 | D52: =SUMIFS(data!$E$3:$E$50016,data!$D$3:$D$50016,C52) -> 1457446.035 | E52: =SUMIFS(data!$F$3:$F$50016,data!$D$3:$D$50016,C52) -> 1399006.59 | F52: 58439.445 | G52: 1
B53: 149 | D53: =SUMIFS(data!$E$3:$E$50016,data!$D$3:$D$50016,C53) -> 1457446.035 | E53: =SUMIFS(data!$F$3:$F$50016,data!$D$3:$D$50016,C53) -> 1399006.59 | F53: 58439.445 | G53: 1
B54: 150 | D54: =SUMIFS(data!$E$3:$E$50016,data!$D$3:$D$50016,C54) -> 1457446.035 | E54: =SUMIFS(data!$F$3:$F$50016,data!$D$3:$D$50016,C54) -> 1399006.59 | F54: 58439.445 | G54: 1
B55: 151 | D55: =SUMIFS(data!$E$3:$E$50016,data!$D$3:$D$50016,C55) -> 1457446.035 | E55: =SUMIFS(data!$F$3:$F$50016,data!$D$3:$D$50016,C55) -> 1399006.59 | F55: 58439.445 | G55: 1
B56: 152 | D56: =SUMIFS(data!$E$3:$E$50016,data!$D$3:$D$50016,C56) -> 1457446.035 | E56: =SUMIFS(data!$F$3:$F$50016,data!$D$3:$D$50016,C56) -> 1399006.59 | F56: 58439.445 | G56: 1
B57: 153 | D57: =SUMIFS(data!$E$3:$E$50016,data!$D$3:$D$50016,C57) -> 1457446.035 | E57: =SUMIFS(data!$F$3:$F$50016,data!$D$3:$D$50016,C57) -> 1399006.59 | F57: 58439.445 | G57: 1
B58: 154 | D58: =SUMIFS(data!$E$3:$E$50016,data!$D$3:$D$50016,C58) -> 1457446.035 | E58: =SUMIFS(data!$F$3:$F$50016,data!$D$3:$D$50016,C58) -> 1399006.59 | F58: 58439.445 | G58: 1
B59: 155 | D59: =SUMIFS(data!$E$3:$E$50016,data!$D$3:$D$50016,C59) -> 1457446.035 | E59: =SUMIFS(data!$F$3:$F$50016,data!$D$3:$D$50016,C59) -> 1399006.59 | F59: 58439.445 | G59: 1
B60: 156 | D60: =SUMIFS(data!$E$3:$E$50016,data!$D$3:$D$50016,C60) -> 1457446.035 | E60: =SUMIFS(data!$F$3:$F$50016,data!$D$3:$D$50016,C60) -> 1399006.59 | F60: 58439.445 | G60: 1
B61: 157 | D61: =SUMIFS(data!$E$3:$E$50016,data!$D$3:$D$50016,C61) -> 1457446.035 | E61: =SUMIFS(data!$F$3:$F$50016,data!$D$3:$D$50016,C61) -> 1399006.59 | F61: 58439.445 | G61: 1
B62: 158 | D62: =SUMIFS(data!$E$3:$E$50016,data!$D$3:$D$50016,C62) -> 1457446.035 | E62: =SUMIFS(data!$F$3:$F$50016,data!$D$3:$D$50016,C62) -> 1399006.59 | F62: 58439.445 | G62: 1
B63: 159 | D63: =SUMIFS(data!$E$3:$E$50016,data!$D$3:$D$50016,C63) -> 1457446.035 | E63: =SUMIFS(data!$F$3:$F$50016,data!$D$3:$D$50016,C63) -> 1399006.59 | F63: 58439.445 | G63: 1
B64: 160 | D64: =SUMIFS(data!$E$3:$E$50016,data!$D$3:$D$50016,C64) -> 1457446.035 | E64: =SUMIFS(data!$F$3:$F$50016,data!$D$3:$D$50016,C64) -> 1399006.59 | F64: 58439.445 | G64: 1
B65: 161 | D65: =SUMIFS(data!$E$3:$E$50016,data!$D$3:$D$50016,C65) -> 1457446.035 | E65: =SUMIFS(data!$F$3:$F$50016,data!$D$3:$D$50016,C65) -> 1399006.59 | F65: 58439.445 | G65: 1
B66: 162 | D66: =SUMIFS(data!$E$3:$E$50016,data!$D$3:$D$50016,C66) -> 1457446.035 | E66: =SUMIFS(data!$F$3:$F$50016,data!$D$3:$D$50016,C66) -> 1399006.59 | F66: 58439.445 | G66: 1
B67: 163 | D67: =SUMIFS(data!$E$3:$E$50016,data!$D$3:$D$50016,C67) -> 1457446.035 | E67: =SUMIFS(data!$F$3:$F$50016,data!$D$3:$D$50016,C67) -> 1399006.59 | F67: 58439.445 | G67: 1
B68: 164 | D68: =SUMIFS(data!$E$3:$E$50016,data!$D$3:$D$50016,C68) -> 1457446.035 | E68: =SUMIFS(data!$F$3:$F$50016,data!$D$3:$D$50016,C68) -> 1399006.59 | F68: 58439.445 | G68: 1
B69: 165 | D69: =SUMIFS(data!$E$3:$E$50016,data!$D$3:$D$50016,C69) -> 1457446.035 | E69: =SUMIFS(data!$F$3:$F$50016,data!$D$3:$D$50016,C69) -> 1399006.59 | F69: =D69-E69 -> 58439.445 | G69: 1
B70: 166 | D70: =SUMIFS(data!$E$3:$E$50016,data!$D$3:$D$50016,C70) -> 1457446.035 | E70: =SUMIFS(data!$F$3:$F$50016,data!$D$3:$D$50016,C70) -> 1399006.59 | F70: 58439.445 | G70: =SIGN(F70) -> 1
B71: 167 | D71: =SUMIFS(data!$E$3:$E$50016,data!$D$3:$D$50016,C71) -> 1457446.035 | E71: =SUMIFS(data!$F$3:$F$50016,data!$D$3:$D$50016,C71) -> 1399006.59 | F71: 58439.445 | G71: 1
B72: 168 | D72: =SUMIFS(data!$E$3:$E$50016,data!$D$3:$D$50016,C72) -> 1457446.035 | E72: =SUMIFS(data!$F$3:$F$50016,data!$D$3:$D$50016,C72) -> 1399006.59 | F72: 58439.445 | G72: 1
B73: 169 | D73: =SUMIFS(data!$E$3:$E$50016,data!$D$3:$D$50016,C73) -> 1457446.035 | E73: =SUMIFS(data!$F$3:$F$50016,data!$D$3:$D$50016,C73) -> 1399006.59 | F73: 58439.445 | G73: 1
B74: 170 | D74: =SUMIFS(data!$E$3:$E$50016,data!$D$3:$D$50016,C74) -> 1457446.035 | E74: =SUMIFS(data!$F$3:$F$50016,data!$D$3:$D$50016,C74) -> 1399006.59 | F74: 58439.445 | G74: 1
B75: 171 | D75: =SUMIFS(data!$E$3:$E$50016,data!$D$3:$D$50016,C75) -> 1457446.035 | E75: =SUMIFS(data!$F$3:$F$50016,data!$D$3:$D$50016,C75) -> 1399006.59 | F75: 58439.445 | G75: 1
B76: 172 | D76: =SUMIFS(data!$E$3:$E$50016,data!$D$3:$D$50016,C76) -> 1457446.035 | E76: =SUMIFS(data!$F$3:$F$50016,data!$D$3:$D$50016,C76) -> 1399006.59 | F76: 58439.445 | G76: 1
B77: 173 | D77: =SUMIFS(data!$E$3:$E$50016,data!$D$3:$D$50016,C77) -> 1457446.035 | E77: =SUMIFS(data!$F$3:$F$50016,data!$D$3:$D$50016,C77) -> 1399006.59 | F77: 58439.445 | G77: 1
B78: 174 | D78: =SUMIFS(data!$E$3:$E$50016,data!$D$3:$D$50016,C78) -> 1457446.035 | E78: =SUMIFS(data!$F$3:$F$50016,data!$D$3:$D$50016,C78) -> 1399006.59 | F78: 58439.445 | G78: 1
B79: 175 | D79: =SUMIFS(data!$E$3:$E$50016,data!$D$3:$D$50016,C79) -> 1457446.035 | E79: =SUMIFS(data!$F$3:$F$50016,data!$D$3:$D$50016,C79) -> 1399006.59 | F79: 58439.445 | G79: 1
B80: 176 | D80: =SUMIFS(data!$E$3:$E$50016,data!$D$3:$D$50016,C80) -> 1457446.035 | E80: =SUMIFS(data!$F$3:$F$50016,data!$D$3:$D$50016,C80) -> 1399006.59 | F80: 58439.445 | G80: 1
B81: 177 | D81: =SUMIFS(data!$E$3:$E$50016,data!$D$3:$D$50016,C81) -> 1457446.035 | E81: =SUMIFS(data!$F$3:$F$50016,data!$D$3:$D$50016,C81) -> 1399006.59 | F81: 58439.445 | G81: 1
B82: 178 | D82: =SUMIFS(data!$E$3:$E$50016,data!$D$3:$D$50016,C82) -> 1457446.035 | E82: =SUMIFS(data!$F$3:$F$50016,data!$D$3:$D$50016,C82) -> 1399006.59 | F82: 58439.445
B83: 179 | D83: =SUMIFS(data!$E$3:$E$50016,data!$D$3:$D$50016,C83) -> 1457446.035 | E83: =SUMIFS(data!$F$3:$F$50016,data!$D$3:$D$50016,C83) -> 1399006.59 | F83: 58439.445
B84: 180 | D84: =SUMIFS(data!$E$3:$E$50016,data!$D$3:$D$50016,C84) -> 1457446.035 | E84: =SUMIFS(data!$F$3:$F$50016,data!$D$3:$D$50016,C84) -> 1399006.59 | F84: 58439.445
B85: 181 | D85: =SUMIFS(data!$E$3:$E$50016,data!$D$3:$D$50016,C85) -> 1457446.035 | E85: =SUMIFS(data!$F$3:$F$50016,data!$D$3:$D$50016,C85) -> 1399006.59 | F85: 58439.445
B86: 182 | D86: =SUMIFS(data!$E$3:$E$50016,data!$D$3:$D$50016,C86) -> 1457446.035 | E86: =SUMIFS(data!$F$3:$F$50016,data!$D$3:$D$50016,C86) -> 1399006.59 | F86: 58439.445
B87: 183 | D87: =SUMIFS(data!$E$3:$E$50016,data!$D$3:$D$50016,C87) -> 1457446.035 | E87: =SUMIFS(data!$F$3:$F$50016,data!$D$3:$D$50016,C87) -> 1399006.59 | F87: 58439.445
B88: 184 | D88: =SUMIFS(data!$E$3:$E$50016,data!$D$3:$D$50016,C88) -> 1457446.035 | E88: =SUMIFS(data!$F$3:$F$50016,data!$D$3:$D$50016,C88) -> 1399006.59 | F88: 58439.445
B89: 185 | D89: =SUMIFS(data!$E$3:$E$50016,data!$D$3:$D$50016,C89) -> 1457446.035 | E89: =SUMIFS(data!$F$3:$F$50016,data!$D$3:$D$50016,C89) -> 1399006.59 | F89: 58439.445 | G89: 1
B90: 186 | D90: =SUMIFS(data!$E$3:$E$50016,data!$D$3:$D$50016,C90) -> 1457446.035 | E90: =SUMIFS(data!$F$3:$F$50016,data!$D$3:$D$50016,C90) -> 1399006.59 | F90: 58439.445 | G90: 1
B91: 187 | D91: =SUMIFS(data!$E$3:$E$50016,data!$D$3:$D$50016,C91) -> 1457446.035 | E91: =SUMIFS(data!$F$3:$F$50016,data!$D$3:$D$50016,C91) -> 1399006.59 | F91: 58439.445 | G91: 1
B92: 188 | D92: =SUMIFS(data!$E$3:$E$50016,data!$D$3:$D$50016,C92) -> 1457446.035 | E92: =SUMIFS(data!$F$3:$F$50016,data!$D$3:$D$50016,C92) -> 1399006.59 | F92: 58439.445 | G92: 1
B93: 189 | D93: =SUMIFS(data!$E$3:$E$50016,data!$D$3:$D$50016,C93) -> 1457446.035 | E93: =SUMIFS(data!$F$3:$F$50016,data!$D$3:$D$50016,C93) -> 1399006.59 | F93: 58439.445 | G93: 1
B94: 190 | D94: =SUMIFS(data!$E$3:$E$50016,data!$D$3:$D$50016,C94) -> 1457446.035 | E94: =SUMIFS(data!$F$3:$F$50016,data!$D$3:$D$50016,C94) -> 1399006.59 | F94: 58439.445 | G94: 1
B95: 191 | D95: =SUMIFS(data!$E$3:$E$50016,data!$D$3:$D$50016,C95) -> 1457446.035 | E95: =SUMIFS(data!$F$3:$F$50016,data!$D$3:$D$50016,C95) -> 1399006.59 | F95: 58439.445 | G95: 1
B96: 192 | D96: =SUMIFS(data!$E$3:$E$50016,data!$D$3:$D$50016,C96) -> 1457446.035 | E96: =SUMIFS(data!$F$3:$F$50016,data!$D$3:$D$50016,C96) -> 1399006.59 | F96: 58439.445 | G96: 1
B97: 193 | D97: =SUMIFS(data!$E$3:$E$50016,data!$D$3:$D$50016,C97) -> 1457446.035 | E97: =SUMIFS(data!$F$3:$F$50016,data!$D$3:$D$50016,C97) -> 1399006.59 | F97: 58439.445 | G97: 1
B98: 194 | D98: =SUMIFS(data!$E$3:$E$50016,data!$D$3:$D$50016,C98) -> 1457446.035 | E98: =SUMIFS(data!$F$3:$F$50016,data!$D$3:$D$50016,C98) -> 1399006.59 | F98: 58439.445 | G98: 1
B99: 195 | D99: =SUMIFS(data!$E$3:$E$50016,data!$D$3:$D$50016,C99) -> 1457446.035 | E99: =SUMIFS(data!$F$3:$F$50016,data!$D$3:$D$50016,C99) -> 1399006.59 | F99: 58439.445 | G99: 1
B100: 196 | D100: =SUMIFS(data!$E$3:$E$50016,data!$D$3:$D$50016,C100) -> 1457446.035 | E100: =SUMIFS(data!$F$3:$F$50016,data!$D$3:$D$50016,C100) -> 1399006.59 | F100: 58439.445 | G100: 1
B101: 197 | D101: =SUMIFS(data!$E$3:$E$50016,data!$D$3:$D$50016,C101) -> 1457446.035 | E101: =SUMIFS(data!$F$3:$F$50016,data!$D$3:$D$50016,C101) -> 1399006.59 | F101: 58439.445 | G101: 1
B102: 198 | D102: =SUMIFS(data!$E$3:$E$50016,data!$D$3:$D$50016,C102) -> 1457446.035 | E102: =SUMIFS(data!$F$3:$F$50016,data!$D$3:$D$50016,C102) -> 1399006.59 | F102: 58439.445 | G102: 1
B103: 199 | D103: =SUMIFS(data!$E$3:$E$50016,data!$D$3:$D$50016,C103) -> 1457446.035 | E103: =SUMIFS(data!$F$3:$F$50016,data!$D$3:$D$50016,C103) -> 1399006.59 | F103: 58439.445 | G103: 1
B104: 200 | D104: =SUMIFS(data!$E$3:$E$50016,data!$D$3:$D$50016,C104) -> 1457446.035 | E104: =SUMIFS(data!$F$3:$F$50016,data!$D$3:$D$50016,C104) -> 1399006.59 | F104: 58439.445 | G104: 1
B105: 201 | D105: =SUMIFS(data!$E$3:$E$50016,data!$D$3:$D$50016,C105) -> 1457446.035 | E105: =SUMIFS(data!$F$3:$F$50016,data!$D$3:$D$50016,C105) -> 1399006.59 | F105: 58439.445 | G105: 1
B106: 202 | D106: =SUMIFS(data!$E$3:$E$50016,data!$D$3:$D$50016,C106) -> 1457446.035 | E106: =SUMIFS(data!$F$3:$F$50016,data!$D$3:$D$50016,C106) -> 1399006.59 | F106: 58439.445 | G106: 1
B107: 203 | D107: =SUMIFS(data!$E$3:$E$50016,data!$D$3:$D$50016,C107) -> 1457446.035 | E107: =SUMIFS(data!$F$3:$F$50016,data!$D$3:$D$50016,C107) -> 1399006.59 | F107: 58439.445 | G107: 1
B108: 204 | D108: =SUMIFS(data!$E$3:$E$50016,data!$D$3:$D$50016,C108) -> 1457446.035 | E108: =SUMIFS(data!$F$3:$F$50016,data!$D$3:$D$50016,C108) -> 1399006.59 | F108: 58439.445 | G108: 1
B109: 205 | D109: =SUMIFS(data!$E$3:$E$50016,data!$D$3:$D$50016,C109) -> 1457446.035 | E109: =SUMIFS(data!$F$3:$F$50016,data!$D$3:$D$50016,C109) -> 1399006.59 | F109: 58439.445 | G109: 1
B110: 206 | D110: =SUMIFS(data!$E$3:$E$50016,data!$D$3:$D$50016,C110) -> 1457446.035 | E110: =SUMIFS(data!$F$3:$F$50016,data!$D$3:$D$50016,C110) -> 1399006.59 | F110: 58439.445 | G110: 1
B111: 207 | D111: =SUMIFS(data!$E$3:$E$50016,data!$D$3:$D$50016,C111) -> 1457446.035 | E111: =SUMIFS(data!$F$3:$F$50016,data!$D$3:$D$50016,C111) -> 1399006.59 | F111: 58439.445 | G111: 1
B112: 208 | D112: =SUMIFS(data!$E$3:$E$50016,data!$D$3:$D$50016,C112) -> 1457446.035 | E112: =SUMIFS(data!$F$3:$F$50016,data!$D$3:$D$50016,C112) -> 1399006.59 | F112: 58439.445 | G112: 1
B113: 209 | D113: =SUMIFS(data!$E$3:$E$50016,data!$D$3:$D$50016,C113) -> 1457446.035 | E113: =SUMIFS(data!$F$3:$F$50016,data!$D$3:$D$50016,C113) -> 1399006.59 | F113: 58439.445 | G113: 1
B114: 210 | D114: =SUMIFS(data!$E$3:$E$50016,data!$D$3:$D$50016,C114) -> 1457446.035 | E114: =SUMIFS(data!$F$3:$F$50016,data!$D$3:$D$50016,C114) -> 1399006.59 | F114: 58439.445 | G114: 1
B115: 211 | D115: =SUMIFS(data!$E$3:$E$50016,data!$D$3:$D$50016,C115) -> 1457446.035 | E115: =SUMIFS(data!$F$3:$F$50016,data!$D$3:$D$50016,C115) -> 1399006.59 | F115: 58439.445 | G115: 1
B116: 212 | D116: =SUMIFS(data!$E$3:$E$50016,data!$D$3:$D$50016,C116) -> 1457446.035 | E116: =SUMIFS(data!$F$3:$F$50016,data!$D$3:$D$50016,C116) -> 1399006.59 | F116: 58439.445 | G116: 1
B117: 213 | D117: =SUMIFS(data!$E$3:$E$50016,data!$D$3:$D$50016,C117) -> 1457446.035 | E117: =SUMIFS(data!$F$3:$F$50016,data!$D$3:$D$50016,C117) -> 1399006.59 | F117: 58439.445 | G117: 1
B118: 214 | D118: =SUMIFS(data!$E$3:$E$50016,data!$D$3:$D$50016,C118) -> 1457446.035 | E118: =SUMIFS(data!$F$3:$F$50016,data!$D$3:$D$50016,C118) -> 1399006.59 | F118: 58439.445 | G118: 1
B119: 215 | D119: =SUMIFS(data!$E$3:$E$50016,data!$D$3:$D$50016,C119) -> 1457446.035 | E119: =SUMIFS(data!$F$3:$F$50016,data!$D$3:$D$50016,C119) -> 1399006.59 | F119: 58439.445 | G119: 1
B120: 216 | D120: =SUMIFS(data!$E$3:$E$50016,data!$D$3:$D$50016,C120) -> 1457446.035 | E120: =SUMIFS(data!$F$3:$F$50016,data!$D$3:$D$50016,C120) -> 1399006.59 | F120: 58439.445 | G120: 1
B121: 217 | D121: =SUMIFS(data!$E$3:$E$50016,data!$D$3:$D$50016,C121) -> 1457446.035 | E121: =SUMIFS(data!$F$3:$F$50016,data!$D$3:$D$50016,C121) -> 1399006.59 | F121: 58439.445 | G121: 1
B122: 218 | D122: =SUMIFS(data!$E$3:$E$50016,data!$D$3:$D$50016,C122) -> 1457446.035 | E122: =SUMIFS(data!$F$3:$F$50016,data!$D$3:$D$50016,C122) -> 1399006.59 | F122: 58439.445 | G122: 1
B123: 219 | D123: =SUMIFS(data!$E$3:$E$50016,data!$D$3:$D$50016,C123) -> 1457446.035 | E123: =SUMIFS(data!$F$3:$F$50016,data!$D$3:$D$50016,C123) -> 1399006.59 | F123: 58439.445 | G123: 1
B124: 220 | D124: =SUMIFS(data!$E$3:$E$50016,data!$D$3:$D$50016,C124) -> 1457446.035 | E124: =SUMIFS(data!$F$3:$F$50016,data!$D$3:$D$50016,C124) -> 1399006.59 | F124: 58439.445 | G124: 1
B125: 221 | D125: =SUMIFS(data!$E$3:$E$50016,data!$D$3:$D$50016,C125) -> 1457446.035 | E125: =SUMIFS(data!$F$3:$F$50016,data!$D$3:$D$50016,C125) -> 1399006.59 | F125: 58439.445 | G125: 1
B126: 222 | D126: =SUMIFS(data!$E$3:$E$50016,data!$D$3:$D$50016,C126) -> 1457446.035 | E126: =SUMIFS(data!$F$3:$F$50016,data!$D$3:$D$50016,C126) -> 1399006.59 | F126: 58439.445 | G126: 1
B127: 223 | D127: =SUMIFS(data!$E$3:$E$50016,data!$D$3:$D$50016,C127) -> 1457446.035 | E127: =SUMIFS(data!$F$3:$F$50016,data!$D$3:$D$50016,C127) -> 1399006.59 | F127: 58439.445 | G127: 1
B128: 224 | D128: =SUMIFS(data!$E$3:$E$50016,data!$D$3:$D$50016,C128) -> 1457446.035 | E128: =SUMIFS(data!$F$3:$F$50016,data!$D$3:$D$50016,C128) -> 1399006.59 | F128: 58439.445 | G128: 1
B129: 225 | D129: =SUMIFS(data!$E$3:$E$50016,data!$D$3:$D$50016,C129) -> 1457446.035 | E129: =SUMIFS(data!$F$3:$F$50016,data!$D$3:$D$50016,C129) -> 1399006.59 | F129: 58439.445 | G129: 1
B130: 226 | D130: =SUMIFS(data!$E$3:$E$50016,data!$D$3:$D$50016,C130) -> 1457446.035 | E130: =SUMIFS(data!$F$3:$F$50016,data!$D$3:$D$50016,C130) -> 1399006.59 | F130: 58439.445 | G130: 1
B131: 227 | D131: =SUMIFS(data!$E$3:$E$50016,data!$D$3:$D$50016,C131) -> 1457446.035 | E131: =SUMIFS(data!$F$3:$F$50016,data!$D$3:$D$50016,C131) -> 1399006.59 | F131: 58439.445 | G131: 1
B132: 228 | D132: =SUMIFS(data!$E$3:$E$50016,data!$D$3:$D$50016,C132) -> 1457446.035 | E132: =SUMIFS(data!$F$3:$F$50016,data!$D$3:$D$50016,C132) -> 1399006.59 | F132: 58439.445 | G132: 1
B133: 229 | D133: =SUMIFS(data!$E$3:$E$50016,data!$D$3:$D$50016,C133) -> 1457446.035 | E133: =SUMIFS(data!$F$3:$F$50016,data!$D$3:$D$50016,C133) -> 1399006.59 | F133: =D133-E133 -> 58439.445 | G133: 1
B134: 230 | D134: =SUMIFS(data!$E$3:$E$50016,data!$D$3:$D$50016,C134) -> 1457446.035 | E134: =SUMIFS(data!$F$3:$F$50016,data!$D$3:$D$50016,C134) -> 1399006.59 | F134: 58439.445 | G134: 1
B135: 231 | D135: =SUMIFS(data!$E$3:$E$50016,data!$D$3:$D$50016,C135) -> 1457446.035 | E135: =SUMIFS(data!$F$3:$F$50016,data!$D$3:$D$50016,C135) -> 1399006.59 | F135: 58439.445 | G135: 1
B136: 232 | D136: =SUMIFS(data!$E$3:$E$50016,data!$D$3:$D$50016,C136) -> 1457446.035 | E136: =SUMIFS(data!$F$3:$F$50016,data!$D$3:$D$50016,C136) -> 1399006.59 | F136: 58439.445 | G136: 1
B137: 233 | D137: =SUMIFS(data!$E$3:$E$50016,data!$D$3:$D$50016,C137) -> 1457446.035 | E137: =SUMIFS(data!$F$3:$F$50016,data!$D$3:$D$50016,C137) -> 1399006.59 | F137: 58439.445 | G137: 1
B138: 234 | D138: =SUMIFS(data!$E$3:$E$50016,data!$D$3:$D$50016,C138) -> 1457446.035 | E138: =SUMIFS(data!$F$3:$F$50016,data!$D$3:$D$50016,C138) -> 1399006.59 | F138: 58439.445 | G138: 1
B139: 235 | D139: =SUMIFS(data!$E$3:$E$50016,data!$D$3:$D$50016,C139) -> 1457446.035 | E139: =SUMIFS(data!$F$3:$F$50016,data!$D$3:$D$50016,C139) -> 1399006.59 | F139: 58439.445 | G139: 1
B140: 236 | D140: =SUMIFS(data!$E$3:$E$50016,data!$D$3:$D$50016,C140) -> 1457446.035 | E140: =SUMIFS(data!$F$3:$F$50016,data!$D$3:$D$50016,C140) -> 1399006.59 | F140: 58439.445 | G140: 1
B141: 237 | D141: =SUMIFS(data!$E$3:$E$50016,data!$D$3:$D$50016,C141) -> 1457446.035 | E141: =SUMIFS(data!$F$3:$F$50016,data!$D$3:$D$50016,C141) -> 1399006.59 | F141: 58439.445 | G141: =SIGN(F141) -> 1
B142: 238 | D142: =SUMIFS(data!$E$3:$E$50016,data!$D$3:$D$50016,C142) -> 1457446.035 | E142: =SUMIFS(data!$F$3:$F$50016,data!$D$3:$D$50016,C142) -> 1399006.59 | F142: 58439.445 | G142: 1
B143: 239 | D143: =SUMIFS(data!$E$3:$E$50016,data!$D$3:$D$50016,C143) -> 1457446.035 | E143: =SUMIFS(data!$F$3:$F$50016,data!$D$3:$D$50016,C143) -> 1399006.59 | F143: 58439.445 | G143: 1
B144: 240 | D144: =SUMIFS(data!$E$3:$E$50016,data!$D$3:$D$50016,C144) -> 1457446.035 | E144: =SUMIFS(data!$F$3:$F$50016,data!$D$3:$D$50016,C144) -> 1399006.59 | F144: 58439.445 | G144: 1
B145: 241 | D145: =SUMIFS(data!$E$3:$E$50016,data!$D$3:$D$50016,C145) -> 1457446.035 | E145: =SUMIFS(data!$F$3:$F$50016,data!$D$3:$D$50016,C145) -> 1399006.59 | F145: 58439.445 | G145: 1
B146: 242 | D146: =SUMIFS(data!$E$3:$E$50016,data!$D$3:$D$50016,C146) -> 1457446.035 | E146: =SUMIFS(data!$F$3:$F$50016,data!$D$3:$D$50016,C146) -> 1399006.59 | F146: 58439.445 | G146: 1
B147: 243 | D147: =SUMIFS(data!$E$3:$E$50016,data!$D$3:$D$50016,C147) -> 1457446.035 | E147: =SUMIFS(data!$F$3:$F$50016,data!$D$3:$D$50016,C147) -> 1399006.59 | F147: 58439.445 | G147: 1
B148: 244 | D148: =SUMIFS(data!$E$3:$E$50016,data!$D$3:$D$50016,C148) -> 1457446.035 | E148: =SUMIFS(data!$F$3:$F$50016,data!$D$3:$D$50016,C148) -> 1399006.59 | F148: 58439.445 | G148: 1
B149: 245 | D149: =SUMIFS(data!$E$3:$E$50016,data!$D$3:$D$50016,C149) -> 1457446.035 | E149: =SUMIFS(data!$F$3:$F$50016,data!$D$3:$D$50016,C149) -> 1399006.59 | F149: 58439.445 | G149: 1
B150: 246 | D150: =SUMIFS(data!$E$3:$E$50016,data!$D$3:$D$50016,C150) -> 1457446.035 | E150: =SUMIFS(data!$F$3:$F$50016,data!$D$3:$D$50016,C150) -> 1399006.59 | F150: 58439.445 | G150: 1
B151: 247 | D151: =SUMIFS(data!$E$3:$E$50016,data!$D$3:$D$50016,C151) -> 1457446.035 | E151: =SUMIFS(data!$F$3:$F$50016,data!$D$3:$D$50016,C151) -> 1399006.59 | F151: 58439.445 | G151: 1
B152: 248 | D152: =SUMIFS(data!$E$3:$E$50016,data!$D$3:$D$50016,C152) -> 1457446.035 | E152: =SUMIFS(data!$F$3:$F$50016,data!$D$3:$D$50016,C152) -> 1399006.59 | F152: 58439.445 | G152: 1
B153: 249 | D153: =SUMIFS(data!$E$3:$E$50016,data!$D$3:$D$50016,C153) -> 1457446.035 | E153: =SUMIFS(data!$F$3:$F$50016,data!$D$3:$D$50016,C153) -> 1399006.59 | F153: 58439.445 | G153: 1
B154: 250 | D154: =SUMIFS(data!$E$3:$E$50016,data!$D$3:$D$50016,C154) -> 1457446.035 | E154: =SUMIFS(data!$F$3:$F$50016,data!$D$3:$D$50016,C154) -> 1399006.59 | F154: 58439.445 | G154: 1
B155: 251 | D155: =SUMIFS(data!$E$3:$E$50016,data!$D$3:$D$50016,C155) -> 1457446.035 | E155: =SUMIFS(data!$F$3:$F$50016,data!$D$3:$D$50016,C155) -> 1399006.59 | F155: 58439.445 | G155: 1
B156: 252 | D156: =SUMIFS(data!$E$3:$E$50016,data!$D$3:$D$50016,C156) -> 1457446.035 | E156: =SUMIFS(data!$F$3:$F$50016,data!$D$3:$D$50016,C156) -> 1399006.59 | F156: 58439.445 | G156: 1
B157: 253 | D157: =SUMIFS(data!$E$3:$E$50016,data!$D$3:$D$50016,C157) -> 1457446.035 | E157: =SUMIFS(data!$F$3:$F$50016,data!$D$3:$D$50016,C157) -> 1399006.59 | F157: 58439.445 | G157: 1
D158: =SUMIFS(data!$E$3:$E$50016,data!$D$3:$D$50016,C158) -> 1457446.035 | E158: =SUMIFS(data!$F$3:$F$50016,data!$D$3:$D$50016,C158) -> 1399006.59 | F158: 58439.445 | G158: 1
D159: =SUMIFS(data!$E$3:$E$50016,data!$D$3:$D$50016,C159) -> 1457446.035 | E159: =SUMIFS(data!$F$3:$F$50016,data!$D$3:$D$50016,C159) -> 1399006.59 | F159: 58439.445 | G159: 1
D160: =SUMIFS(data!$E$3:$E$50016,data!$D$3:$D$50016,C160) -> 1457446.035 | E160: =SUMIFS(data!$F$3:$F$50016,data!$D$3:$D$50016,C160) -> 1399006.59 | F160: 58439.445 | G160: 1
D161: =SUMIFS(data!$E$3:$E$50016,data!$D$3:$D$50016,C161) -> 1457446.035 | E161: =SUMIFS(data!$F$3:$F$50016,data!$D$3:$D$50016,C161) -> 1399006.59 | F161: 58439.445 | G161: 1
D162: =SUMIFS(data!$E$3:$E$50016,data!$D$3:$D$50016,C162) -> 1457446.035 | E162: =SUMIFS(data!$F$3:$F$50016,data!$D$3:$D$50016,C162) -> 1399006.59 | F162: 58439.445 | G162: 1
D163: =SUMIFS(data!$E$3:$E$50016,data!$D$3:$D$50016,C163) -> 1457446.035 | E163: =SUMIFS(data!$F$3:$F$50016,data!$D$3:$D$50016,C163) -> 1399006.59 | F163: 58439.445 | G163: 1
D164: =SUMIFS(data!$E$3:$E$50016,data!$D$3:$D$50016,C164) -> 1457446.035 | E164: =SUMIFS(data!$F$3:$F$50016,data!$D$3:$D$50016,C164) -> 1399006.59 | F164: 58439.445 | G164: 1
D165: =SUMIFS(data!$E$3:$E$50016,data!$D$3:$D$50016,C165) -> 1457446.035 | E165: =SUMIFS(data!$F$3:$F$50016,data!$D$3:$D$50016,C165) -> 1399006.59 | F165: 58439.445 | G165: 1
D166: =SUMIFS(data!$E$3:$E$50016,data!$D$3:$D$50016,C166) -> 1457446.035 | E166: =SUMIFS(data!$F$3:$F$50016,data!$D$3:$D$50016,C166) -> 1399006.59 | F166: 58439.445 | G166: 1
D167: =SUMIFS(data!$E$3:$E$50016,data!$D$3:$D$50016,C167) -> 1457446.035 | E167: =SUMIFS(data!$F$3:$F$50016,data!$D$3:$D$50016,C167) -> 1399006.59 | F167: 58439.445 | G167: 1
D168: =SUMIFS(data!$E$3:$E$50016,data!$D$3:$D$50016,C168) -> 1457446.035 | E168: =SUMIFS(data!$F$3:$F$50016,data!$D$3:$D$50016,C168) -> 1399006.59 | F168: 58439.445 | G168: 1
D169: =SUMIFS(data!$E$3:$E$50016,data!$D$3:$D$50016,C169) -> 1457446.035 | E169: =SUMIFS(data!$F$3:$F$50016,data!$D$3:$D$50016,C169) -> 1399006.59 | F169: 58439.445 | G169: 1
F170: =SUM(F5:F169) -> 9201237.506

Sheet data
B4: التاريخ | C4: الكود | D4: اسم الحساب | E4: مدين | F4: دائن | G4: رقم الفاتورة/ رقم الشيك | H4: وصــف الحـــركــة
B5: 2018-01-01 | C5: 100 | D5: =IFERROR(VLOOKUP(C5,عملاء!$B$5:$C$15008,2,0),"") ->  | E5: 1696.43 | F5: 0
B6: 2018-01-01 | C6: 101 | D6: =IFERROR(VLOOKUP(C6,عملاء!$B$5:$C$15008,2,0),"") -> محمد | E6: 11925.5 | F6: 0
B7: 2018-01-01 | C7: 101 | D7: =IFERROR(VLOOKUP(C7,عملاء!$B$5:$C$15008,2,0),"") -> محمد | E7: 4440 | F7: 11925.5
B8: 2018-01-01 | C8: 101 | D8: =IFERROR(VLOOKUP(C8,عملاء!$B$5:$C$15008,2,0),"") -> محمد | E8: 260 | F8: 0
B9: 2018-01-02 | C9: 101 | D9: =IFERROR(VLOOKUP(C9,عملاء!$B$5:$C$15008,2,0),"") -> محمد | E9: 500 | F9: 0
B10: 2018-01-03 | C10: 101 | D10: =IFERROR(VLOOKUP(C10,عملاء!$B$5:$C$15008,2,0),"") -> محمد | E10: 200 | F10: 0
B11: 2018-01-07 | C11: 101 | D11: =IFERROR(VLOOKUP(C11,عملاء!$B$5:$C$15008,2,0),"") -> محمد | E11: 250 | F11: 0
B12: 2018-01-11 | C12: 101 | D12: =IFERROR(VLOOKUP(C12,عملاء!$B$5:$C$15008,2,0),"") -> محمد | E12: 0 | F12: 0
B13: 2018-01-14 | C13: 101 | D13: =IFERROR(VLOOKUP(C13,عملاء!$B$5:$C$15008,2,0),"") -> محمد | E13: 367 | F13: 0
B14: 2018-01-21 | C14: 101 | D14: =IFERROR(VLOOKUP(C14,عملاء!$B$5:$C$15008,2,0),"") -> محمد | E14: 975 | F14: 0
B15: 2018-01-24 | C15: 101 | D15: =IFERROR(VLOOKUP(C15,عملاء!$B$5:$C$15008,2,0),"") -> محمد | E15: 0 | F15: 0
B16: 2018-02-01 | C16: 101 | D16: =IFERROR(VLOOKUP(C16,عملاء!$B$5:$C$15008,2,0),"") -> محمد | E16: 147.54 | F16: 0
B17: 2018-02-05 | C17: 101 | D17: =IFERROR(VLOOKUP(C17,عملاء!$B$5:$C$15008,2,0),"") -> محمد | E17: 160 | F17: 0
B18: 2018-02-08 | C18: 101 | D18: =IFERROR(VLOOKUP(C18,عملاء!$B$5:$C$15008,2,0),"") -> محمد | E18: 644.5 | F18: 0
B19: 2018-02-12 | C19: 101 | D19: =IFERROR(VLOOKUP(C19,عملاء!$B$5:$C$15008,2,0),"") -> محمد | E19: 5660 | F19: 0
B20: 2018-02-12 | C20: 101 | D20: =IFERROR(VLOOKUP(C20,عملاء!$B$5:$C$15008,2,0),"") -> محمد | E20: 15454 | F20: 0
B21: 2018-02-14 | C21: 101 | D21: =IFERROR(VLOOKUP(C21,عملاء!$B$5:$C$15008,2,0),"") -> محمد | E21: 3161 | F21: 0
B22: 2018-02-20 | C22: 101 | D22: =IFERROR(VLOOKUP(C22,عملاء!$B$5:$C$15008,2,0),"") -> محمد | E22: 358 | F22: 0
B23: 2018-03-07 | C23: 101 | D23: =IFERROR(VLOOKUP(C23,عملاء!$B$5:$C$15008,2,0),"") -> محمد | E23: 1085 | F23: 0
B24: 2018-03-11 | C24: 101 | D24: =IFERROR(VLOOKUP(C24,عملاء!$B$5:$C$15008,2,0),"") -> محمد | E24: 190 | F24: 0
B25: 2018-03-21 | C25: 101 | D25: =IFERROR(VLOOKUP(C25,عملاء!$B$5:$C$15008,2,0),"") -> محمد | E25: 0 | F25: 5650
B26: 2018-04-04 | C26: 101 | D26: =IFERROR(VLOOKUP(C26,عملاء!$B$5:$C$15008,2,0),"") -> محمد | E26: 360 | F26: 0
B27: 2018-04-19 | C27: 101 | D27: =IFERROR(VLOOKUP(C27,عملاء!$B$5:$C$15008,2,0),"") -> محمد | E27: 276 | F27: 0
B28: 2018-04-24 | C28: 101 | D28: =IFERROR(VLOOKUP(C28,عملاء!$B$5:$C$15008,2,0),"") -> محمد | E28: 581 | F28: 0
B29: 2018-05-03 | C29: 101 | D29: =IFERROR(VLOOKUP(C29,عملاء!$B$5:$C$15008,2,0),"") -> محمد | E29: 702 | F29: 0
B30: 2018-04-04 | C30: 101 | D30: =IFERROR(VLOOKUP(C30,عملاء!$B$5:$C$15008,2,0),"") -> محمد | E30: 0 | F30: 26569
B31: 2018-05-06 | C31: 101 | D31: =IFERROR(VLOOKUP(C31,عملاء!$B$5:$C$15008,2,0),"") -> محمد | E31: 0 | F31: 1633
B32: 2018-05-07 | C32: 101 | D32: =IFERROR(VLOOKUP(C32,عملاء!$B$5:$C$15008,2,0),"") -> محمد | E32: 0 | F32: 360
B33: 2018-05-13 | C33: 101 | D33: =IFERROR(VLOOKUP(C33,عملاء!$B$5:$C$15008,2,0),"") -> محمد | E33: 517 | F33: 0
B34: 2018-05-15 | C34: 101 | D34: =IFERROR(VLOOKUP(C34,عملاء!$B$5:$C$15008,2,0),"") -> محمد | E34: 531 | F34: 0
B35: 2018-05-23 | C35: 101 | D35: =IFERROR(VLOOKUP(C35,عملاء!$B$5:$C$15008,2,0),"") -> محمد | E35: 883 | F35: 0
B36: 2018-05-29 | C36: 101 | D36: =IFERROR(VLOOKUP(C36,عملاء!$B$5:$C$15008,2,0),"") -> محمد | E36: 160 | F36: 0
B37: 2018-06-06 | C37: 101 | D37: =IFERROR(VLOOKUP(C37,عملاء!$B$5:$C$15008,2,0),"") -> محمد | E37: 459 | F37: 0
B38: 2018-05-03 | C38: 101 | D38: =IFERROR(VLOOKUP(C38,عملاء!$B$5:$C$15008,2,0),"") -> محمد | E38: 1370 | F38: 0
B39: 2018-05-10 | C39: 101 | D39: =IFERROR(VLOOKUP(C39,عملاء!$B$5:$C$15008,2,0),"") -> محمد | E39: 3030.5 | F39: 0
B40: 2018-06-13 | C40: 101 | D40: =IFERROR(VLOOKUP(C40,عملاء!$B$5:$C$15008,2,0),"") -> محمد | E40: 268 | F40: 0
B41: 2018-06-21 | C41: 101 | D41: =IFERROR(VLOOKUP(C41,عملاء!$B$5:$C$15008,2,0),"") -> محمد | E41: 431.5 | F41: 0
B42: 2018-06-24 | C42: 101 | D42: =IFERROR(VLOOKUP(C42,عملاء!$B$5:$C$15008,2,0),"") -> محمد | E42: 1038.5 | F42: 0
B43: 2018-07-01 | C43: 101 | D43: =IFERROR(VLOOKUP(C43,عملاء!$B$5:$C$15008,2,0),"") -> محمد | E43: 0 | F43: 5637.5
B44: 2018-07-01 | C44: 101 | D44: =IFERROR(VLOOKUP(C44,عملاء!$B$5:$C$15008,2,0),"") -> محمد | E44: 754 | F44: 0
B45: 2018-07-01 | C45: 101 | D45: =IFERROR(VLOOKUP(C45,عملاء!$B$5:$C$15008,2,0),"") -> محمد | E45: 2351 | F45: 0
B46: 2018-07-02 | C46: 101 | D46: =IFERROR(VLOOKUP(C46,عملاء!$B$5:$C$15008,2,0),"") -> محمد | E46: 1805 | F46: 0
B47: 2018-07-05 | C47: 101 | D47: =IFERROR(VLOOKUP(C47,عملاء!$B$5:$C$15008,2,0),"") -> محمد | E47: 6404 | F47: 0
B48: 2018-07-09 | C48: 101 | D48: =IFERROR(VLOOKUP(C48,عملاء!$B$5:$C$15008,2,0),"") -> محمد | E48: 217.5 | F48: 0
B49: 2018-07-10 | C49: 101 | D49: =IFERROR(VLOOKUP(C49,عملاء!$B$5:$C$15008,2,0),"") -> محمد | E49: 205.5 | F49: 0
B50: 2018-07-16 | C50: 101 | D50: =IFERROR(VLOOKUP(C50,عملاء!$B$5:$C$15008,2,0),"") -> محمد | E50: 739 | F50: 0
B51: 2018-07-17 | C51: 101 | D51: =IFERROR(VLOOKUP(C51,عملاء!$B$5:$C$15008,2,0),"") -> محمد | E51: 1417 | F51: 0
B52: 2018-07-19 | C52: 101 | D52: =IFERROR(VLOOKUP(C52,عملاء!$B$5:$C$15008,2,0),"") -> محمد | E52: 2698 | F52: 0
B53: 2018-08-06 | C53: 101 | D53: =IFERROR(VLOOKUP(C53,عملاء!$B$5:$C$15008,2,0),"") -> محمد | E53: 509 | F53: 0
B54: 2018-08-15 | C54: 101 | D54: =IFERROR(VLOOKUP(C54,عملاء!$B$5:$C$15008,2,0),"") -> محمد | E54: 17864 | F54: 0
B55: 2018-08-15 | C55: 101 | D55: =IFERROR(VLOOKUP(C55,عملاء!$B$5:$C$15008,2,0),"") -> محمد | E55: 10401 | F55: 0
B56: 2018-08-15 | C56: 101 | D56: =IFERROR(VLOOKUP(C56,عملاء!$B$5:$C$15008,2,0),"") -> محمد | E56: 6415 | F56: 0
B57: 2018-08-15 | C57: 101 | D57: =IFERROR(VLOOKUP(C57,عملاء!$B$5:$C$15008,2,0),"") -> محمد | E57: 2750 | F57: 0
B58: 2018-08-18 | C58: 101 | D58: =IFERROR(VLOOKUP(C58,عملاء!$B$5:$C$15008,2,0),"") -> محمد | E58: 2862.5 | F58: 0
B59: 2018-08-18 | C59: 101 | D59: =IFERROR(VLOOKUP(C59,عملاء!$B$5:$C$15008,2,0),"") -> محمد | E59: 1669 | F59: 0
B60: 2018-08-18 | C60: 101 | D60: =IFERROR(VLOOKUP(C60,عملاء!$B$5:$C$15008,2,0),"") -> محمد | E60: 1025 | F60: 0
B61: 2018-08-19 | C61: 101 | D61: =IFERROR(VLOOKUP(C61,عملاء!$B$5:$C$15008,2,0),"") -> محمد | E61: 205 | F61: 0
B62: 2018-08-19 | C62: 101 | D62: =IFERROR(VLOOKUP(C62,عملاء!$B$5:$C$15008,2,0),"") -> محمد | E62: 0 | F62: 36425
B63: 2018-08-15 | C63: 101 | D63: =IFERROR(VLOOKUP(C63,عملاء!$B$5:$C$15008,2,0),"") -> محمد | E63: 0 | F63: 4531.5
B64: 2018-01-01 | C64: 102 | D64: =IFERROR(VLOOKUP(C64,عملاء!$B$5:$C$15008,2,0),"") -> على | E64: 20000 | F64: 0
B65: 2018-06-06 | C65: 102 | D65: =IFERROR(VLOOKUP(C65,عملاء!$B$5:$C$15008,2,0),"") -> على | E65: 14407.69 | F65: 0
B66: 2018-07-05 | C66: 102 | D66: =IFERROR(VLOOKUP(C66,عملاء!$B$5:$C$15008,2,0),"") -> على | E66: 60711.15 | F66: 0
B67: 2018-07-15 | C67: 102 | D67: =IFERROR(VLOOKUP(C67,عملاء!$B$5:$C$15008,2,0),"") -> على | E67: 13035.25 | F67: 0
B68: 2018-07-16 | C68: 102 | D68: =IFERROR(VLOOKUP(C68,عملاء!$B$5:$C$15008,2,0),"") -> على | E68: 1160.54 | F68: 0
B69: 2018-07-22 | C69: 102 | D69: =IFERROR(VLOOKUP(C69,عملاء!$B$5:$C$15008,2,0),"") -> على | E69: 32714.1 | F69: 0
B70: 2018-07-22 | C70: 102 | D70: =IFERROR(VLOOKUP(C70,عملاء!$B$5:$C$15008,2,0),"") -> على | E70: 185.82 | F70: 0
B71: 2018-07-26 | C71: 102 | D71: =IFERROR(VLOOKUP(C71,عملاء!$B$5:$C$15008,2,0),"") -> على | E71: 936.38 | F71: 0
B72: 2018-08-01 | C72: 102 | D72: =IFERROR(VLOOKUP(C72,عملاء!$B$5:$C$15008,2,0),"") -> على | E72: 11974.25 | F72: 0
B73: 2018-08-09 | C73: 102 | D73: =IFERROR(VLOOKUP(C73,عملاء!$B$5:$C$15008,2,0),"") -> على | E73: 17501.7 | F73: 0
B74: 2018-05-07 | C74: 103 | D74: =IFERROR(VLOOKUP(C74,عملاء!$B$5:$C$15008,2,0),"") -> محمود | E74: 5600 | F74: 0
B75: 2018-05-22 | C75: 103 | D75: =IFERROR(VLOOKUP(C75,عملاء!$B$5:$C$15008,2,0),"") -> محمود | E75: 0 | F75: 5600
B76: 2018-06-26 | C76: 103 | D76: =IFERROR(VLOOKUP(C76,عملاء!$B$5:$C$15008,2,0),"") -> محمود | E76: 23703 | F76: 0
B77: 2018-05-26 | C77: 103 | D77: =IFERROR(VLOOKUP(C77,عملاء!$B$5:$C$15008,2,0),"") -> محمود | E77: 21433.5 | F77: 0
B78: 2018-06-26 | C78: 103 | D78: =IFERROR(VLOOKUP(C78,عملاء!$B$5:$C$15008,2,0),"") -> محمود | E78: 0 | F78: 43000
B79: 2018-06-26 | C79: 103 | D79: =IFERROR(VLOOKUP(C79,عملاء!$B$5:$C$15008,2,0),"") -> محمود | E79: 0 | F79: 2136.5
B80: 2018-08-27 | C80: 103 | D80: =IFERROR(VLOOKUP(C80,عملاء!$B$5:$C$15008,2,0),"") -> محمود | E80: 1700 | F80: 0
B81: 2018-01-01 | C81: 106 | D81: =IFERROR(VLOOKUP(C81,عملاء!$B$5:$C$15008,2,0),"") -> عبد الرحمن | E81: 22228.97 | F81: 0
B82: 2018-01-03 | C82: 106 | D82: =IFERROR(VLOOKUP(C82,عملاء!$B$5:$C$15008,2,0),"") -> عبد الرحمن | E82: 3002.08 | F82: 0
B83: 2018-01-10 | C83: 106 | D83: =IFERROR(VLOOKUP(C83,عملاء!$B$5:$C$15008,2,0),"") -> عبد الرحمن | E83: 10112.85 | F83: 0
B84: 2018-01-17 | C84: 106 | D84: =IFERROR(VLOOKUP(C84,عملاء!$B$5:$C$15008,2,0),"") -> عبد الرحمن | E84: 8024.45 | F84: 0
B85: 2018-01-25 | C85: 106 | D85: =IFERROR(VLOOKUP(C85,عملاء!$B$5:$C$15008,2,0),"") -> عبد الرحمن | E85: 19459.575 | F85: 0
B86: 2018-01-22 | C86: 106 | D86: =IFERROR(VLOOKUP(C86,عملاء!$B$5:$C$15008,2,0),"") -> عبد الرحمن | E86: 0 | F86: 22228.9
B87: 2018-02-07 | C87: 106 | D87: =IFERROR(VLOOKUP(C87,عملاء!$B$5:$C$15008,2,0),"") -> عبد الرحمن | E87: 9766.68 | F87: 0
B88: 2018-02-15 | C88: 106 | D88: =IFERROR(VLOOKUP(C88,عملاء!$B$5:$C$15008,2,0),"") -> عبد الرحمن | E88: 4994 | F88: 0
B89: 2018-02-21 | C89: 106 | D89: =IFERROR(VLOOKUP(C89,عملاء!$B$5:$C$15008,2,0),"") -> عبد الرحمن | E89: 2284.1875 | F89: 0
B90: 2018-02-25 | C90: 106 | D90: =IFERROR(VLOOKUP(C90,عملاء!$B$5:$C$15008,2,0),"") -> عبد الرحمن | E90: 0 | F90: 21139.38
B91: 2018-03-15 | C91: 106 | D91: =IFERROR(VLOOKUP(C91,عملاء!$B$5:$C$15008,2,0),"") -> عبد الرحمن | E91: 25253.75 | F91: 0
B92: 2018-03-20 | C92: 106 | D92: =IFERROR(VLOOKUP(C92,عملاء!$B$5:$C$15008,2,0),"") -> عبد الرحمن | E92: 2837.5 | F92: 0
B93: 2018-03-26 | C93: 106 | D93: =IFERROR(VLOOKUP(C93,عملاء!$B$5:$C$15008,2,0),"") -> عبد الرحمن | E93: 0 | F93: 61758.2
B94: 2018-03-26 | C94: 106 | D94: =IFERROR(VLOOKUP(C94,عملاء!$B$5:$C$15008,2,0),"") -> عبد الرحمن | E94: 15418.98 | F94: 0
B95: 2018-04-07 | C95: 106 | D95: =IFERROR(VLOOKUP(C95,عملاء!$B$5:$C$15008,2,0),"") -> عبد الرحمن | E95: 10158.25 | F95: 0
B96: 2018-04-19 | C96: 106 | D96: =IFERROR(VLOOKUP(C96,عملاء!$B$5:$C$15008,2,0),"") -> عبد الرحمن | E96: 26105 | F96: 0
B97: 2018-04-19 | C97: 106 | D97: =IFERROR(VLOOKUP(C97,عملاء!$B$5:$C$15008,2,0),"") -> عبد الرحمن | E97: 11951.55 | F97: 0
B98: 2018-04-28 | C98: 106 | D98: =IFERROR(VLOOKUP(C98,عملاء!$B$5:$C$15008,2,0),"") -> عبد الرحمن | E98: 20815.9 | F98: 0
B99: 2018-05-12 | C99: 106 | D99: =IFERROR(VLOOKUP(C99,عملاء!$B$5:$C$15008,2,0),"") -> عبد الرحمن | E99: 7473.98 | F99: 0
B100: 2018-05-12 | C100: 106 | D100: =IFERROR(VLOOKUP(C100,عملاء!$B$5:$C$15008,2,0),"") -> عبد الرحمن | E100: 0 | F100: 66471.28
B101: 2018-05-20 | C101: 106 | D101: =IFERROR(VLOOKUP(C101,عملاء!$B$5:$C$15008,2,0),"") -> عبد الرحمن | E101: 15193.6 | F101: 0
B102: 2018-05-29 | C102: 106 | D102: =IFERROR(VLOOKUP(C102,عملاء!$B$5:$C$15008,2,0),"") -> عبد الرحمن | E102: 13495.15 | F102: 0
B103: 2018-05-20 | C103: 106 | D103: =IFERROR(VLOOKUP(C103,عملاء!$B$5:$C$15008,2,0),"") -> عبد الرحمن | E103: 2043 | F103: 0
B104: 2018-06-05 | C104: 106 | D104: =IFERROR(VLOOKUP(C104,عملاء!$B$5:$C$15008,2,0),"") -> عبد الرحمن | E104: 0 | F104: 43453.48
B105: 2018-06-06 | C105: 106 | D105: =IFERROR(VLOOKUP(C105,عملاء!$B$5:$C$15008,2,0),"") -> عبد الرحمن | E105: 12302.27 | F105: 0
B106: 2018-06-21 | C106: 106 | D106: =IFERROR(VLOOKUP(C106,عملاء!$B$5:$C$15008,2,0),"") -> عبد الرحمن | E106: 13393 | F106: 0
B107: 2018-07-07 | C107: 106 | D107: =IFERROR(VLOOKUP(C107,عملاء!$B$5:$C$15008,2,0),"") -> عبد الرحمن | E107: 27909.65 | F107: 0
B108: 2018-07-10 | C108: 106 | D108: =IFERROR(VLOOKUP(C108,عملاء!$B$5:$C$15008,2,0),"") -> عبد الرحمن | E108: 2099.75 | F108: 0
B109: 2018-07-30 | C109: 106 | D109: =IFERROR(VLOOKUP(C109,عملاء!$B$5:$C$15008,2,0),"") -> عبد الرحمن | E109: 18579.95 | F109: 0
B110: 2018-07-20 | C110: 106 | D110: =IFERROR(VLOOKUP(C110,عملاء!$B$5:$C$15008,2,0),"") -> عبد الرحمن | E110: 0 | F110: 71272.88
B111: 2018-08-06 | C111: 106 | D111: =IFERROR(VLOOKUP(C111,عملاء!$B$5:$C$15008,2,0),"") -> عبد الرحمن | E111: 6968.9 | F111: 0
B112: 2018-08-28 | C112: 106 | D112: =IFERROR(VLOOKUP(C112,عملاء!$B$5:$C$15008,2,0),"") -> عبد الرحمن | E112: 22383.04 | F112: 0
B113: 2018-01-30 | C113: 107 | D113: =IFERROR(VLOOKUP(C113,عملاء!$B$5:$C$15008,2,0),"") -> احمد | E113: 368.88 | F113: 0
B114: 2018-05-02 | C114: 107 | D114: =IFERROR(VLOOKUP(C114,عملاء!$B$5:$C$15008,2,0),"") -> احمد | E114: 0 | F114: 368.88
B115: 2018-05-02 | C115: 107 | D115: =IFERROR(VLOOKUP(C115,عملاء!$B$5:$C$15008,2,0),"") -> احمد | E115: 3688.75 | F115: 0
B116: 2018-05-21 | C116: 107 | D116: =IFERROR(VLOOKUP(C116,عملاء!$B$5:$C$15008,2,0),"") -> احمد | E116: 14062.2 | F116: 0
B117: 2018-05-24 | C117: 107 | D117: =IFERROR(VLOOKUP(C117,عملاء!$B$5:$C$15008,2,0),"") -> احمد | E117: 363.2 | F117: 0
B118: 2018-05-02 | C118: 107 | D118: =IFERROR(VLOOKUP(C118,عملاء!$B$5:$C$15008,2,0),"") -> احمد | E118: 0 | F118: 18114.15
B119: 2018-06-11 | C119: 107 | D119: =IFERROR(VLOOKUP(C119,عملاء!$B$5:$C$15008,2,0),"") -> احمد | E119: 15600.58 | F119: 0
B120: 2018-06-11 | C120: 107 | D120: =IFERROR(VLOOKUP(C120,عملاء!$B$5:$C$15008,2,0),"") -> احمد | E120: 4562.7 | F120: 0
B121: 2018-07-18 | C121: 107 | D121: =IFERROR(VLOOKUP(C121,عملاء!$B$5:$C$15008,2,0),"") -> احمد | E121: 0 | F121: 20163.28
B122: 2018-08-15 | C122: 107 | D122: =IFERROR(VLOOKUP(C122,عملاء!$B$5:$C$15008,2,0),"") -> احمد | E122: 1526.58 | F122: 0
B123: 2018-01-30 | C123: 108 | D123: =IFERROR(VLOOKUP(C123,عملاء!$B$5:$C$15008,2,0),"") -> محمد | E123: 1935.13 | F123: 0
B124: 2018-01-31 | C124: 108 | D124: =IFERROR(VLOOKUP(C124,عملاء!$B$5:$C$15008,2,0),"") -> محمد | E124: 0 | F124: 1935.13
B125: 2018-04-12 | C125: 108 | D125: =IFERROR(VLOOKUP(C125,عملاء!$B$5:$C$15008,2,0),"") -> محمد | E125: 354.69 | F125: 0
B126: 2018-04-12 | C126: 108 | D126: =IFERROR(VLOOKUP(C126,عملاء!$B$5:$C$15008,2,0),"") -> محمد | E126: 1549.84 | F126: 0
B127: 2018-04-12 | C127: 108 | D127: =IFERROR(VLOOKUP(C127,عملاء!$B$5:$C$15008,2,0),"") -> محمد | E127: 0 | F127: 1904.53
B128: 2018-08-06 | C128: 108 | D128: =IFERROR(VLOOKUP(C128,عملاء!$B$5:$C$15008,2,0),"") -> محمد | E128: 3291.5 | F128: 0
B129: 2018-08-15 | C129: 108 | D129: =IFERROR(VLOOKUP(C129,عملاء!$B$5:$C$15008,2,0),"") -> محمد | E129: 3546.88 | F129: 0
B130: 2018-01-01 | C130: 110 | D130: =IFERROR(VLOOKUP(C130,عملاء!$B$5:$C$15008,2,0),"") -> السيد | E130: 871 | F130: 0
B131: 2018-01-01 | C131: 112 | D131: =IFERROR(VLOOKUP(C131,عملاء!$B$5:$C$15008,2,0),"") -> احمد | E131: 8786.1575 | F131: 0
B132: 2018-01-02 | C132: 112 | D132: =IFERROR(VLOOKUP(C132,عملاء!$B$5:$C$15008,2,0),"") -> احمد | E132: 408.6 | F132: 0
B133: 2018-01-04 | C133: 112 | D133: =IFERROR(VLOOKUP(C133,عملاء!$B$5:$C$15008,2,0),"") -> احمد | E133: 0 | F133: 3000
B134: 2018-01-06 | C134: 112 | D134: =IFERROR(VLOOKUP(C134,عملاء!$B$5:$C$15008,2,0),"") -> احمد | E134: 484.65 | F134: 0
B135: 2018-01-07 | C135: 112 | D135: =IFERROR(VLOOKUP(C135,عملاء!$B$5:$C$15008,2,0),"") -> احمد | E135: 91.2 | F135: 0
B136: 2018-01-08 | C136: 112 | D136: =IFERROR(VLOOKUP(C136,عملاء!$B$5:$C$15008,2,0),"") -> احمد | E136: 1297.31 | F136: 0
B137: 2018-01-10 | C137: 112 | D137: =IFERROR(VLOOKUP(C137,عملاء!$B$5:$C$15008,2,0),"") -> احمد | E137: 153.9 | F137: 0
B138: 2018-01-14 | C138: 112 | D138: =IFERROR(VLOOKUP(C138,عملاء!$B$5:$C$15008,2,0),"") -> احمد | E138: 4625.13 | F138: 0
B139: 2018-01-14 | C139: 112 | D139: =IFERROR(VLOOKUP(C139,عملاء!$B$5:$C$15008,2,0),"") -> احمد | E139: 0 | F139: 4000
B140: 2018-01-21 | C140: 112 | D140: =IFERROR(VLOOKUP(C140,عملاء!$B$5:$C$15008,2,0),"") -> احمد | E140: 0 | F140: 3000
B141: 2018-01-22 | C141: 112 | D141: =IFERROR(VLOOKUP(C141,عملاء!$B$5:$C$15008,2,0),"") -> احمد | E141: 851.25 | F141: 0
B142: 2018-01-23 | C142: 112 | D142: =IFERROR(VLOOKUP(C142,عملاء!$B$5:$C$15008,2,0),"") -> احمد | E142: 145.92 | F142: 0
B143: 2018-01-30 | C143: 112 | D143: =IFERROR(VLOOKUP(C143,عملاء!$B$5:$C$15008,2,0),"") -> احمد | E143: 0 | F143: 3000
B144: 2018-02-01 | C144: 112 | D144: =IFERROR(VLOOKUP(C144,عملاء!$B$5:$C$15008,2,0),"") -> احمد | E144: 777.48 | F144: 0
B145: 2018-02-05 | C145: 112 | D145: =IFERROR(VLOOKUP(C145,عملاء!$B$5:$C$15008,2,0),"") -> احمد | E145: 4687.55 | F145: 0
B146: 2018-02-05 | C146: 112 | D146: =IFERROR(VLOOKUP(C146,عملاء!$B$5:$C$15008,2,0),"") -> احمد | E146: 1199.1275 | F146: 0
B147: 2018-02-11 | C147: 112 | D147: =IFERROR(VLOOKUP(C147,عملاء!$B$5:$C$15008,2,0),"") -> احمد | E147: 228 | F147: 0
B148: 2018-02-12 | C148: 112 | D148: =IFERROR(VLOOKUP(C148,عملاء!$B$5:$C$15008,2,0),"") -> احمد | E148: 662.84 | F148: 0
B149: 2018-02-14 | C149: 112 | D149: =IFERROR(VLOOKUP(C149,عملاء!$B$5:$C$15008,2,0),"") -> احمد | E149: 1082.79 | F149: 0
B150: 2018-02-18 | C150: 112 | D150: =IFERROR(VLOOKUP(C150,عملاء!$B$5:$C$15008,2,0),"") -> احمد | E150: 811.525 | F150: 0
B151: 2018-02-21 | C151: 112 | D151: =IFERROR(VLOOKUP(C151,عملاء!$B$5:$C$15008,2,0),"") -> احمد | E151: 363.2 | F151: 0
B152: 2018-02-22 | C152: 112 | D152: =IFERROR(VLOOKUP(C152,عملاء!$B$5:$C$15008,2,0),"") -> احمد | E152: 0 | F152: 13656.63
B153: 2018-02-28 | C153: 112 | D153: =IFERROR(VLOOKUP(C153,عملاء!$B$5:$C$15008,2,0),"") -> احمد | E153: 510.75 | F153: 0
B154: 2018-03-15 | C154: 112 | D154: =IFERROR(VLOOKUP(C154,عملاء!$B$5:$C$15008,2,0),"") -> احمد | E154: 482.375 | F154: 0
B155: 2018-03-10 | C155: 112 | D155: =IFERROR(VLOOKUP(C155,عملاء!$B$5:$C$15008,2,0),"") -> احمد | E155: 5048.48 | F155: 0
B156: 2018-03-13 | C156: 112 | D156: =IFERROR(VLOOKUP(C156,عملاء!$B$5:$C$15008,2,0),"") -> احمد | E156: 581.7 | F156: 0
B157: 2018-03-13 | C157: 112 | D157: =IFERROR(VLOOKUP(C157,عملاء!$B$5:$C$15008,2,0),"") -> احمد | E157: 2172.39 | F157: 0
B158: 2018-03-15 | C158: 112 | D158: =IFERROR(VLOOKUP(C158,عملاء!$B$5:$C$15008,2,0),"") -> احمد | E158: 1265.525 | F158: 0
B159: 2018-03-22 | C159: 112 | D159: =IFERROR(VLOOKUP(C159,عملاء!$B$5:$C$15008,2,0),"") -> احمد | E159: 544.8 | F159: 0
B160: 2018-03-24 | C160: 112 | D160: =IFERROR(VLOOKUP(C160,عملاء!$B$5:$C$15008,2,0),"") -> احمد | E160: 544.8 | F160: 0
B161: 2018-04-01 | C161: 112 | D161: =IFERROR(VLOOKUP(C161,عملاء!$B$5:$C$15008,2,0),"") -> احمد | E161: 1094.7075 | F161: 0
B162: 2018-04-01 | C162: 112 | D162: =IFERROR(VLOOKUP(C162,عملاء!$B$5:$C$15008,2,0),"") -> احمد | F162: 11150.82
B163: 2018-04-07 | C163: 112 | D163: =IFERROR(VLOOKUP(C163,عملاء!$B$5:$C$15008,2,0),"") -> احمد | E163: 267.9 | F163: 0
B164: 2018-04-08 | C164: 112 | D164: =IFERROR(VLOOKUP(C164,عملاء!$B$5:$C$15008,2,0),"") -> احمد | E164: 1291.63 | F164: 0
B165: 2018-04-12 | C165: 112 | D165: =IFERROR(VLOOKUP(C165,عملاء!$B$5:$C$15008,2,0),"") -> احمد | E165: 4328.89 | F165: 0
B166: 2018-04-18 | C166: 112 | D166: =IFERROR(VLOOKUP(C166,عملاء!$B$5:$C$15008,2,0),"") -> احمد | E166: 624.25 | F166: 0
B167: 2018-04-18 | C167: 112 | D167: =IFERROR(VLOOKUP(C167,عملاء!$B$5:$C$15008,2,0),"") -> احمد | E167: 2153.1 | F167: 0
B168: 2018-04-26 | C168: 112 | D168: =IFERROR(VLOOKUP(C168,عملاء!$B$5:$C$15008,2,0),"") -> احمد | E168: 2929.44 | F168: 0
B169: 2018-04-25 | C169: 112 | D169: =IFERROR(VLOOKUP(C169,عملاء!$B$5:$C$15008,2,0),"") -> احمد | E169: 1571.98 | F169: 0
B170: 2018-04-26 | C170: 112 | D170: =IFERROR(VLOOKUP(C170,عملاء!$B$5:$C$15008,2,0),"") -> احمد | E170: 1872.75 | F170: 0
B171: 2018-05-01 | C171: 112 | D171: =IFERROR(VLOOKUP(C171,عملاء!$B$5:$C$15008,2,0),"") -> احمد | E171: 1055.55 | F171: 0
B172: 2018-05-06 | C172: 112 | D172: =IFERROR(VLOOKUP(C172,عملاء!$B$5:$C$15008,2,0),"") -> احمد | E172: 500.54 | F172: 0
B173: 2018-05-12 | C173: 112 | D173: =IFERROR(VLOOKUP(C173,عملاء!$B$5:$C$15008,2,0),"") -> احمد | E173: 18408.57 | F173: 0
B174: 2018-05-13 | C174: 112 | D174: =IFERROR(VLOOKUP(C174,عملاء!$B$5:$C$15008,2,0),"") -> احمد | E174: 295.26 | F174: 0
B175: 2018-05-15 | C175: 112 | D175: =IFERROR(VLOOKUP(C175,عملاء!$B$5:$C$15008,2,0),"") -> احمد | E175: 11263.06 | F175: 0
B176: 2018-05-25 | C176: 112 | D176: =IFERROR(VLOOKUP(C176,عملاء!$B$5:$C$15008,2,0),"") -> احمد | E176: 0 | F176: 16134.64
B177: 2018-05-16 | C177: 112 | D177: =IFERROR(VLOOKUP(C177,عملاء!$B$5:$C$15008,2,0),"") -> احمد | E177: 641.28 | F177: 0
B178: 2018-05-12 | C178: 112 | D178: =IFERROR(VLOOKUP(C178,عملاء!$B$5:$C$15008,2,0),"") -> احمد | E178: 459.68 | F178: 0
B179: 2018-05-22 | C179: 112 | D179: =IFERROR(VLOOKUP(C179,عملاء!$B$5:$C$15008,2,0),"") -> احمد | E179: 290.7 | F179: 0
B180: 2018-05-23 | C180: 112 | D180: =IFERROR(VLOOKUP(C180,عملاء!$B$5:$C$15008,2,0),"") -> احمد | E180: 239.4 | F180: 0
B181: 2018-05-28 | C181: 112 | D181: =IFERROR(VLOOKUP(C181,عملاء!$B$5:$C$15008,2,0),"") -> احمد | E181: 961.91 | F181: 0
B182: 2018-05-29 | C182: 112 | D182: =IFERROR(VLOOKUP(C182,عملاء!$B$5:$C$15008,2,0),"") -> احمد | E182: 3924.83 | F182: 0
B183: 2018-06-03 | C183: 112 | D183: =IFERROR(VLOOKUP(C183,عملاء!$B$5:$C$15008,2,0),"") -> احمد | E183: 873.95 | F183: 0
B184: 2018-06-03 | C184: 112 | D184: =IFERROR(VLOOKUP(C184,عملاء!$B$5:$C$15008,2,0),"") -> احمد | E184: 6270.88 | F184: 0
B185: 2018-06-03 | C185: 112 | D185: =IFERROR(VLOOKUP(C185,عملاء!$B$5:$C$15008,2,0),"") -> احمد | E185: 0 | F185: 38040.74
B186: 2018-06-19 | C186: 112 | D186: =IFERROR(VLOOKUP(C186,عملاء!$B$5:$C$15008,2,0),"") -> احمد | E186: 712.78 | F186: 0
B187: 2018-06-21 | C187: 112 | D187: =IFERROR(VLOOKUP(C187,عملاء!$B$5:$C$15008,2,0),"") -> احمد | E187: 817.2 | F187: 0
B188: 2018-06-25 | C188: 112 | D188: =IFERROR(VLOOKUP(C188,عملاء!$B$5:$C$15008,2,0),"") -> احمد | E188: 397.5 | F188: 0
B189: 2018-06-28 | C189: 112 | D189: =IFERROR(VLOOKUP(C189,عملاء!$B$5:$C$15008,2,0),"") -> احمد | E189: 533.45 | F189: 0
B190: 2018-07-02 | C190: 112 | D190: =IFERROR(VLOOKUP(C190,عملاء!$B$5:$C$15008,2,0),"") -> احمد | E190: 159.6 | F190: 0
B191: 2018-07-05 | C191: 112 | D191: =IFERROR(VLOOKUP(C191,عملاء!$B$5:$C$15008,2,0),"") -> احمد | E191: 1030.4 | F191: 0
B192: 2018-07-08 | C192: 112 | D192: =IFERROR(VLOOKUP(C192,عملاء!$B$5:$C$15008,2,0),"") -> احمد | E192: 687.81 | F192: 0
B193: 2018-07-09 | C193: 112 | D193: =IFERROR(VLOOKUP(C193,عملاء!$B$5:$C$15008,2,0),"") -> احمد | E193: 2426.06 | F193: 0
B194: 2018-07-10 | C194: 112 | D194: =IFERROR(VLOOKUP(C194,عملاء!$B$5:$C$15008,2,0),"") -> احمد | E194: 1767.48 | F194: 0
B195: 2018-07-11 | C195: 112 | D195: =IFERROR(VLOOKUP(C195,عملاء!$B$5:$C$15008,2,0),"") -> احمد | E195: 1355.53 | F195: 0
B196: 2018-07-23 | C196: 112 | D196: =IFERROR(VLOOKUP(C196,عملاء!$B$5:$C$15008,2,0),"") -> احمد | E196: 749.1 | F196: 0
B197: 2018-08-12 | C197: 112 | D197: =IFERROR(VLOOKUP(C197,عملاء!$B$5:$C$15008,2,0),"") -> احمد | E197: 0 | F197: 9765.01
B198: 2018-07-24 | C198: 112 | D198: =IFERROR(VLOOKUP(C198,عملاء!$B$5:$C$15008,2,0),"") -> احمد | E198: 925.03 | F198: 0
B199: 2018-07-25 | C199: 112 | D199: =IFERROR(VLOOKUP(C199,عملاء!$B$5:$C$15008,2,0),"") -> احمد | E199: 1457.34 | F199: 0
B200: 2018-07-29 | C200: 112 | D200: =IFERROR(VLOOKUP(C200,عملاء!$B$5:$C$15008,2,0),"") -> احمد | E200: 646.95 | F200: 0
B201: 2018-07-29 | C201: 112 | D201: =IFERROR(VLOOKUP(C201,عملاء!$B$5:$C$15008,2,0),"") -> احمد | E201: 0 | F201: 342
B202: 2018-08-04 | C202: 112 | D202: =IFERROR(VLOOKUP(C202,عملاء!$B$5:$C$15008,2,0),"") -> احمد | E202: 414.28 | F202: 0
B203: 2018-08-06 | C203: 112 | D203: =IFERROR(VLOOKUP(C203,عملاء!$B$5:$C$15008,2,0),"") -> احمد | E203: 442.65 | F203: 0
... 10318 more rows

Sheet كشف حساب
C1: كشــــف حـــركة حســـــاب | H1: =E1022 -> 997
H2: رصيد
B3: الفترة من | C3: 2018-01-01 | F3: الى :- | G3: 2020-12-31
B4: اسم العميل :- | C4: =IFERROR(VLOOKUP(E5,data!$C$2:$D$15329,2,0),"") -> 0
D5: رقـم العميل :- | E5: 148 | F5: تاريخ الكشــف | G5: =NOW() -> 2019-11-17T16:17:00.050
B7: التاريخ | C7: رقم الفاتورة/ رقم الشيك | D7: وصــــف الحـــركــة | G7: الرصيد
E8: مدين | F8: دائن | G8: مدين | H8: دائــن
A9: =kh_MatchArray(INDEX(MyDate,0,2)=$E$5,(INDEX(MyDate,0,1)>=$C$3)*(INDEX(MyDate,0,1)<=$G$3)) -> 654 | B9: =IF($A9,INDEX(MyDate,$A9,1),"") -> 2018-10-02 | C9: =IF($A9,INDEX(MyDate,$A9,6),"") -> 0 | D9: =IF($A9,INDEX(MyDate,$A9,7),"") -> 0 | E9: =IF($A9,INDEX(MyDate,$A9,4),"") -> 1778.5 | F9: =IF($A9,INDEX(MyDate,$A9,5),"") -> 0 | G9: =IF(B9="","",IF(SUM($E$9:E9)-SUM($F$9:F9)>0,SUM($E$9:E9)-SUM($F$9:F9),0)) -> 1778.5 | H9: =IF(B9="","",IF(SUM($F$9:F9)-SUM($E$9:E9)>0,SUM($F$9:F9)-SUM($E$9:E9),0)) -> 0
A10: 655 | B10: 2018-10-02 | C10: 0 | D10: 0 | E10: 0 | F10: 1778.5 | G10: =IF(B10="","",IF(SUM($E$9:E10)-SUM($F$9:F10)>0,SUM($E$9:E10)-SUM($F$9:F10),0)) -> 0 | H10: =IF(B10="","",IF(SUM($F$9:F10)-SUM($E$9:E10)>0,SUM($F$9:F10)-SUM($E$9:E10),0)) -> 0
A11: 656 | B11: 2018-10-02 | C11: 0 | D11: 0 | E11: 962 | F11: 0 | G11: =IF(B11="","",IF(SUM($E$9:E11)-SUM($F$9:F11)>0,SUM($E$9:E11)-SUM($F$9:F11),0)) -> 962 | H11: =IF(B11="","",IF(SUM($F$9:F11)-SUM($E$9:E11)>0,SUM($F$9:F11)-SUM($E$9:E11),0)) -> 0
A12: 657 | B12: 2018-10-02 | C12: 0 | D12: 0 | E12: 0 | F12: 962 | G12: =IF(B12="","",IF(SUM($E$9:E12)-SUM($F$9:F12)>0,SUM($E$9:E12)-SUM($F$9:F12),0)) -> 0 | H12: =IF(B12="","",IF(SUM($F$9:F12)-SUM($E$9:E12)>0,SUM($F$9:F12)-SUM($E$9:E12),0)) -> 0
A13: 658 | B13: 2018-10-02 | C13: 0 | D13: 0 | E13: 213 | F13: 0 | G13: =IF(B13="","",IF(SUM($E$9:E13)-SUM($F$9:F13)>0,SUM($E$9:E13)-SUM($F$9:F13),0)) -> 213 | H13: =IF(B13="","",IF(SUM($F$9:F13)-SUM($E$9:E13)>0,SUM($F$9:F13)-SUM($E$9:E13),0)) -> 0
A14: 659 | B14: 2018-10-02 | C14: 0 | D14: 0 | E14: 0 | F14: 213 | G14: =IF(B14="","",IF(SUM($E$9:E14)-SUM($F$9:F14)>0,SUM($E$9:E14)-SUM($F$9:F14),0)) -> 0 | H14: =IF(B14="","",IF(SUM($F$9:F14)-SUM($E$9:E14)>0,SUM($F$9:F14)-SUM($E$9:E14),0)) -> 0
A15: 660 | B15: 2018-10-03 | C15: 0 | D15: 0 | E15: 440.5 | F15: 0 | G15: =IF(B15="","",IF(SUM($E$9:E15)-SUM($F$9:F15)>0,SUM($E$9:E15)-SUM($F$9:F15),0)) -> 440.5 | H15: =IF(B15="","",IF(SUM($F$9:F15)-SUM($E$9:E15)>0,SUM($F$9:F15)-SUM($E$9:E15),0)) -> 0
A16: 661 | B16: 2018-10-03 | C16: 0 | D16: 0 | E16: 0 | F16: 47.5 | G16: =IF(B16="","",IF(SUM($E$9:E16)-SUM($F$9:F16)>0,SUM($E$9:E16)-SUM($F$9:F16),0)) -> 393 | H16: =IF(B16="","",IF(SUM($F$9:F16)-SUM($E$9:E16)>0,SUM($F$9:F16)-SUM($E$9:E16),0)) -> 0
A17: 662 | B17: 2018-10-03 | C17: 0 | D17: 0 | E17: 0 | F17: 907.5 | G17: =IF(B17="","",IF(SUM($E$9:E17)-SUM($F$9:F17)>0,SUM($E$9:E17)-SUM($F$9:F17),0)) -> 0 | H17: =IF(B17="","",IF(SUM($F$9:F17)-SUM($E$9:E17)>0,SUM($F$9:F17)-SUM($E$9:E17),0)) -> 514.5
A18: 663 | B18: 2018-10-29 | C18: 0 | D18: 0 | E18: 1219 | F18: 0 | G18: =IF(B18="","",IF(SUM($E$9:E18)-SUM($F$9:F18)>0,SUM($E$9:E18)-SUM($F$9:F18),0)) -> 704.5 | H18: =IF(B18="","",IF(SUM($F$9:F18)-SUM($E$9:E18)>0,SUM($F$9:F18)-SUM($E$9:E18),0)) -> 0
A19: 844 | B19: 2018-12-04 | C19: 0 | D19: 0 | E19: 10 | F19: 0 | G19: =IF(B19="","",IF(SUM($E$9:E19)-SUM($F$9:F19)>0,SUM($E$9:E19)-SUM($F$9:F19),0)) -> 714.5 | H19: =IF(B19="","",IF(SUM($F$9:F19)-SUM($E$9:E19)>0,SUM($F$9:F19)-SUM($E$9:E19),0)) -> 0
A20: 934 | B20: 2018-12-20 | C20: 0 | D20: 0 | E20: 1790.5 | F20: 0 | G20: =IF(B20="","",IF(SUM($E$9:E20)-SUM($F$9:F20)>0,SUM($E$9:E20)-SUM($F$9:F20),0)) -> 2505 | H20: =IF(B20="","",IF(SUM($F$9:F20)-SUM($E$9:E20)>0,SUM($F$9:F20)-SUM($E$9:E20),0)) -> 0
A21: 935 | B21: 2018-12-20 | C21: 0 | D21: 0 | E21: 110 | F21: 0 | G21: =IF(B21="","",IF(SUM($E$9:E21)-SUM($F$9:F21)>0,SUM($E$9:E21)-SUM($F$9:F21),0)) -> 2615 | H21: =IF(B21="","",IF(SUM($F$9:F21)-SUM($E$9:E21)>0,SUM($F$9:F21)-SUM($E$9:E21),0)) -> 0
A22: 936 | B22: 2018-12-20 | C22: 0 | D22: 0 | E22: 0 | F22: 1000 | G22: =IF(B22="","",IF(SUM($E$9:E22)-SUM($F$9:F22)>0,SUM($E$9:E22)-SUM($F$9:F22),0)) -> 1615 | H22: =IF(B22="","",IF(SUM($F$9:F22)-SUM($E$9:E22)>0,SUM($F$9:F22)-SUM($E$9:E22),0)) -> 0
A23: 1029 | B23: 2019-01-02 | C23: 0 | D23: 0 | E23: 142.5 | F23: 0 | G23: =IF(B23="","",IF(SUM($E$9:E23)-SUM($F$9:F23)>0,SUM($E$9:E23)-SUM($F$9:F23),0)) -> 1757.5 | H23: =IF(B23="","",IF(SUM($F$9:F23)-SUM($E$9:E23)>0,SUM($F$9:F23)-SUM($E$9:E23),0)) -> 0
A24: 1123 | B24: 2019-01-17 | C24: 0 | D24: 0 | E24: 0 | F24: 1757.5 | G24: =IF(B24="","",IF(SUM($E$9:E24)-SUM($F$9:F24)>0,SUM($E$9:E24)-SUM($F$9:F24),0)) -> 0 | H24: =IF(B24="","",IF(SUM($F$9:F24)-SUM($E$9:E24)>0,SUM($F$9:F24)-SUM($E$9:E24),0)) -> 0
A25: 1127 | B25: 2019-01-19 | C25: 0 | D25: 0 | E25: 325 | F25: 0 | G25: =IF(B25="","",IF(SUM($E$9:E25)-SUM($F$9:F25)>0,SUM($E$9:E25)-SUM($F$9:F25),0)) -> 325 | H25: =IF(B25="","",IF(SUM($F$9:F25)-SUM($E$9:E25)>0,SUM($F$9:F25)-SUM($E$9:E25),0)) -> 0
A26: 1128 | B26: 2019-01-19 | C26: 0 | D26: 0 | E26: 0 | F26: 1110.5 | G26: =IF(B26="","",IF(SUM($E$9:E26)-SUM($F$9:F26)>0,SUM($E$9:E26)-SUM($F$9:F26),0)) -> 0 | H26: =IF(B26="","",IF(SUM($F$9:F26)-SUM($E$9:E26)>0,SUM($F$9:F26)-SUM($E$9:E26),0)) -> 785.5
A27: 1150 | B27: 2019-01-23 | C27: 0 | D27: 0 | E27: 320 | F27: 0 | G27: =IF(B27="","",IF(SUM($E$9:E27)-SUM($F$9:F27)>0,SUM($E$9:E27)-SUM($F$9:F27),0)) -> 0 | H27: =IF(B27="","",IF(SUM($F$9:F27)-SUM($E$9:E27)>0,SUM($F$9:F27)-SUM($E$9:E27),0)) -> 465.5
A28: 1754 | B28: 2019-04-25 | C28: 0 | D28: 0 | E28: 465.5 | F28: 0 | G28: =IF(B28="","",IF(SUM($E$9:E28)-SUM($F$9:F28)>0,SUM($E$9:E28)-SUM($F$9:F28),0)) -> 0 | H28: =IF(B28="","",IF(SUM($F$9:F28)-SUM($E$9:E28)>0,SUM($F$9:F28)-SUM($E$9:E28),0)) -> 0
A29: 2599 | B29: 2019-09-24 | C29: 0 | D29: 0 | E29: 627 | F29: 0 | G29: =IF(B29="","",IF(SUM($E$9:E29)-SUM($F$9:F29)>0,SUM($E$9:E29)-SUM($F$9:F29),0)) -> 627 | H29: =IF(B29="","",IF(SUM($F$9:F29)-SUM($E$9:E29)>0,SUM($F$9:F29)-SUM($E$9:E29),0)) -> 0
A30: 2600 | B30: 2019-09-24 | C30: 0 | D30: 0 | E30: 1206 | F30: 0 | G30: =IF(B30="","",IF(SUM($E$9:E30)-SUM($F$9:F30)>0,SUM($E$9:E30)-SUM($F$9:F30),0)) -> 1833 | H30: =IF(B30="","",IF(SUM($F$9:F30)-SUM($E$9:E30)>0,SUM($F$9:F30)-SUM($E$9:E30),0)) -> 0
A31: 2732 | B31: 2019-10-05 | C31: 0 | D31: 0 | E31: 0 | F31: 1833 | G31: =IF(B31="","",IF(SUM($E$9:E31)-SUM($F$9:F31)>0,SUM($E$9:E31)-SUM($F$9:F31),0)) -> 0 | H31: =IF(B31="","",IF(SUM($F$9:F31)-SUM($E$9:E31)>0,SUM($F$9:F31)-SUM($E$9:E31),0)) -> 0
A32: 2733 | B32: 2019-10-05 | C32: 0 | D32: 0 | E32: 522 | F32: 0 | G32: =IF(B32="","",IF(SUM($E$9:E32)-SUM($F$9:F32)>0,SUM($E$9:E32)-SUM($F$9:F32),0)) -> 522 | H32: =IF(B32="","",IF(SUM($F$9:F32)-SUM($E$9:E32)>0,SUM($F$9:F32)-SUM($E$9:E32),0)) -> 0
A33: 2938 | B33: 2019-10-17 | C33: 0 | D33: 0 | E33: 475 | F33: 0 | G33: =IF(B33="","",IF(SUM($E$9:E33)-SUM($F$9:F33)>0,SUM($E$9:E33)-SUM($F$9:F33),0)) -> 997 | H33: =IF(B33="","",IF(SUM($F$9:F33)-SUM($E$9:E33)>0,SUM($F$9:F33)-SUM($E$9:E33),0)) -> 0
A34: 0 | G34: =IF(B34="","",IF(SUM($E$9:E34)-SUM($F$9:F34)>0,SUM($E$9:E34)-SUM($F$9:F34),0)) ->  | H34: =IF(B34="","",IF(SUM($F$9:F34)-SUM($E$9:E34)>0,SUM($F$9:F34)-SUM($E$9:E34),0)) -> 
A35: 0 | G35: =IF(B35="","",IF(SUM($E$9:E35)-SUM($F$9:F35)>0,SUM($E$9:E35)-SUM($F$9:F35),0)) ->  | H35: =IF(B35="","",IF(SUM($F$9:F35)-SUM($E$9:E35)>0,SUM($F$9:F35)-SUM($E$9:E35),0)) -> 
A36: 0 | G36: =IF(B36="","",IF(SUM($E$9:E36)-SUM($F$9:F36)>0,SUM($E$9:E36)-SUM($F$9:F36),0)) ->  | H36: =IF(B36="","",IF(SUM($F$9:F36)-SUM($E$9:E36)>0,SUM($F$9:F36)-SUM($E$9:E36),0)) -> 
A37: 0 | G37: =IF(B37="","",IF(SUM($E$9:E37)-SUM($F$9:F37)>0,SUM($E$9:E37)-SUM($F$9:F37),0)) ->  | H37: =IF(B37="","",IF(SUM($F$9:F37)-SUM($E$9:E37)>0,SUM($F$9:F37)-SUM($E$9:E37),0)) -> 
A38: 0 | G38: =IF(B38="","",IF(SUM($E$9:E38)-SUM($F$9:F38)>0,SUM($E$9:E38)-SUM($F$9:F38),0)) ->  | H38: =IF(B38="","",IF(SUM($F$9:F38)-SUM($E$9:E38)>0,SUM($F$9:F38)-SUM($E$9:E38),0)) -> 
A39: 0 | G39: =IF(B39="","",IF(SUM($E$9:E39)-SUM($F$9:F39)>0,SUM($E$9:E39)-SUM($F$9:F39),0)) ->  | H39: =IF(B39="","",IF(SUM($F$9:F39)-SUM($E$9:E39)>0,SUM($F$9:F39)-SUM($E$9:E39),0)) -> 
A40: 0 | G40: =IF(B40="","",IF(SUM($E$9:E40)-SUM($F$9:F40)>0,SUM($E$9:E40)-SUM($F$9:F40),0)) ->  | H40: =IF(B40="","",IF(SUM($F$9:F40)-SUM($E$9:E40)>0,SUM($F$9:F40)-SUM($E$9:E40),0)) -> 
A41: 0 | G41: =IF(B41="","",IF(SUM($E$9:E41)-SUM($F$9:F41)>0,SUM($E$9:E41)-SUM($F$9:F41),0)) ->  | H41: =IF(B41="","",IF(SUM($F$9:F41)-SUM($E$9:E41)>0,SUM($F$9:F41)-SUM($E$9:E41),0)) -> 
A42: 0 | G42: =IF(B42="","",IF(SUM($E$9:E42)-SUM($F$9:F42)>0,SUM($E$9:E42)-SUM($F$9:F42),0)) ->  | H42: =IF(B42="","",IF(SUM($F$9:F42)-SUM($E$9:E42)>0,SUM($F$9:F42)-SUM($E$9:E42),0)) -> 
A43: 0 | G43: =IF(B43="","",IF(SUM($E$9:E43)-SUM($F$9:F43)>0,SUM($E$9:E43)-SUM($F$9:F43),0)) ->  | H43: =IF(B43="","",IF(SUM($F$9:F43)-SUM($E$9:E43)>0,SUM($F$9:F43)-SUM($E$9:E43),0)) -> 
A44: 0 | G44: =IF(B44="","",IF(SUM($E$9:E44)-SUM($F$9:F44)>0,SUM($E$9:E44)-SUM($F$9:F44),0)) ->  | H44: =IF(B44="","",IF(SUM($F$9:F44)-SUM($E$9:E44)>0,SUM($F$9:F44)-SUM($E$9:E44),0)) -> 
A45: 0 | G45: =IF(B45="","",IF(SUM($E$9:E45)-SUM($F$9:F45)>0,SUM($E$9:E45)-SUM($F$9:F45),0)) ->  | H45: =IF(B45="","",IF(SUM($F$9:F45)-SUM($E$9:E45)>0,SUM($F$9:F45)-SUM($E$9:E45),0)) -> 
A46: 0 | G46: =IF(B46="","",IF(SUM($E$9:E46)-SUM($F$9:F46)>0,SUM($E$9:E46)-SUM($F$9:F46),0)) ->  | H46: =IF(B46="","",IF(SUM($F$9:F46)-SUM($E$9:E46)>0,SUM($F$9:F46)-SUM($E$9:E46),0)) -> 
A47: 0 | G47: =IF(B47="","",IF(SUM($E$9:E47)-SUM($F$9:F47)>0,SUM($E$9:E47)-SUM($F$9:F47),0)) ->  | H47: =IF(B47="","",IF(SUM($F$9:F47)-SUM($E$9:E47)>0,SUM($F$9:F47)-SUM($E$9:E47),0)) -> 
A48: 0 | G48: =IF(B48="","",IF(SUM($E$9:E48)-SUM($F$9:F48)>0,SUM($E$9:E48)-SUM($F$9:F48),0)) ->  | H48: =IF(B48="","",IF(SUM($F$9:F48)-SUM($E$9:E48)>0,SUM($F$9:F48)-SUM($E$9:E48),0)) -> 
A49: 0 | G49: =IF(B49="","",IF(SUM($E$9:E49)-SUM($F$9:F49)>0,SUM($E$9:E49)-SUM($F$9:F49),0)) ->  | H49: =IF(B49="","",IF(SUM($F$9:F49)-SUM($E$9:E49)>0,SUM($F$9:F49)-SUM($E$9:E49),0)) -> 
A50: 0 | G50: =IF(B50="","",IF(SUM($E$9:E50)-SUM($F$9:F50)>0,SUM($E$9:E50)-SUM($F$9:F50),0)) ->  | H50: =IF(B50="","",IF(SUM($F$9:F50)-SUM($E$9:E50)>0,SUM($F$9:F50)-SUM($E$9:E50),0)) -> 
A51: 0 | G51: =IF(B51="","",IF(SUM($E$9:E51)-SUM($F$9:F51)>0,SUM($E$9:E51)-SUM($F$9:F51),0)) ->  | H51: =IF(B51="","",IF(SUM($F$9:F51)-SUM($E$9:E51)>0,SUM($F$9:F51)-SUM($E$9:E51),0)) -> 
A52: 0 | C52: =IF($A52,INDEX(MyDate,$A52,6),"") ->  | G52: =IF(B52="","",IF(SUM($E$9:E52)-SUM($F$9:F52)>0,SUM($E$9:E52)-SUM($F$9:F52),0)) ->  | H52: =IF(B52="","",IF(SUM($F$9:F52)-SUM($E$9:E52)>0,SUM($F$9:F52)-SUM($E$9:E52),0)) -> 
A53: 0 | G53: =IF(B53="","",IF(SUM($E$9:E53)-SUM($F$9:F53)>0,SUM($E$9:E53)-SUM($F$9:F53),0)) ->  | H53: =IF(B53="","",IF(SUM($F$9:F53)-SUM($E$9:E53)>0,SUM($F$9:F53)-SUM($E$9:E53),0)) -> 
A54: 0 | G54: =IF(B54="","",IF(SUM($E$9:E54)-SUM($F$9:F54)>0,SUM($E$9:E54)-SUM($F$9:F54),0)) ->  | H54: =IF(B54="","",IF(SUM($F$9:F54)-SUM($E$9:E54)>0,SUM($F$9:F54)-SUM($E$9:E54),0)) -> 
A55: 0 | G55: =IF(B55="","",IF(SUM($E$9:E55)-SUM($F$9:F55)>0,SUM($E$9:E55)-SUM($F$9:F55),0)) ->  | H55: =IF(B55="","",IF(SUM($F$9:F55)-SUM($E$9:E55)>0,SUM($F$9:F55)-SUM($E$9:E55),0)) -> 
A56: 0 | G56: =IF(B56="","",IF(SUM($E$9:E56)-SUM($F$9:F56)>0,SUM($E$9:E56)-SUM($F$9:F56),0)) ->  | H56: =IF(B56="","",IF(SUM($F$9:F56)-SUM($E$9:E56)>0,SUM($F$9:F56)-SUM($E$9:E56),0)) -> 
A57: 0 | G57: =IF(B57="","",IF(SUM($E$9:E57)-SUM($F$9:F57)>0,SUM($E$9:E57)-SUM($F$9:F57),0)) ->  | H57: =IF(B57="","",IF(SUM($F$9:F57)-SUM($E$9:E57)>0,SUM($F$9:F57)-SUM($E$9:E57),0)) -> 
A58: 0 | G58: =IF(B58="","",IF(SUM($E$9:E58)-SUM($F$9:F58)>0,SUM($E$9:E58)-SUM($F$9:F58),0)) ->  | H58: =IF(B58="","",IF(SUM($F$9:F58)-SUM($E$9:E58)>0,SUM($F$9:F58)-SUM($E$9:E58),0)) -> 
A59: 0 | G59: =IF(B59="","",IF(SUM($E$9:E59)-SUM($F$9:F59)>0,SUM($E$9:E59)-SUM($F$9:F59),0)) ->  | H59: =IF(B59="","",IF(SUM($F$9:F59)-SUM($E$9:E59)>0,SUM($F$9:F59)-SUM($E$9:E59),0)) -> 
A60: 0 | G60: =IF(B60="","",IF(SUM($E$9:E60)-SUM($F$9:F60)>0,SUM($E$9:E60)-SUM($F$9:F60),0)) ->  | H60: =IF(B60="","",IF(SUM($F$9:F60)-SUM($E$9:E60)>0,SUM($F$9:F60)-SUM($E$9:E60),0)) -> 
A61: 0 | G61: =IF(B61="","",IF(SUM($E$9:E61)-SUM($F$9:F61)>0,SUM($E$9:E61)-SUM($F$9:F61),0)) ->  | H61: =IF(B61="","",IF(SUM($F$9:F61)-SUM($E$9:E61)>0,SUM($F$9:F61)-SUM($E$9:E61),0)) -> 
A62: 0 | G62: =IF(B62="","",IF(SUM($E$9:E62)-SUM($F$9:F62)>0,SUM($E$9:E62)-SUM($F$9:F62),0)) ->  | H62: =IF(B62="","",IF(SUM($F$9:F62)-SUM($E$9:E62)>0,SUM($F$9:F62)-SUM($E$9:E62),0)) -> 
A63: 0 | G63: =IF(B63="","",IF(SUM($E$9:E63)-SUM($F$9:F63)>0,SUM($E$9:E63)-SUM($F$9:F63),0)) ->  | H63: =IF(B63="","",IF(SUM($F$9:F63)-SUM($E$9:E63)>0,SUM($F$9:F63)-SUM($E$9:E63),0)) -> 
A64: 0 | G64: =IF(B64="","",IF(SUM($E$9:E64)-SUM($F$9:F64)>0,SUM($E$9:E64)-SUM($F$9:F64),0)) ->  | H64: =IF(B64="","",IF(SUM($F$9:F64)-SUM($E$9:E64)>0,SUM($F$9:F64)-SUM($E$9:E64),0)) -> 
A65: 0 | G65: =IF(B65="","",IF(SUM($E$9:E65)-SUM($F$9:F65)>0,SUM($E$9:E65)-SUM($F$9:F65),0)) ->  | H65: =IF(B65="","",IF(SUM($F$9:F65)-SUM($E$9:E65)>0,SUM($F$9:F65)-SUM($E$9:E65),0)) -> 
A66: 0 | G66: =IF(B66="","",IF(SUM($E$9:E66)-SUM($F$9:F66)>0,SUM($E$9:E66)-SUM($F$9:F66),0)) ->  | H66: =IF(B66="","",IF(SUM($F$9:F66)-SUM($E$9:E66)>0,SUM($F$9:F66)-SUM($E$9:E66),0)) -> 
A67: 0 | G67: =IF(B67="","",IF(SUM($E$9:E67)-SUM($F$9:F67)>0,SUM($E$9:E67)-SUM($F$9:F67),0)) ->  | H67: =IF(B67="","",IF(SUM($F$9:F67)-SUM($E$9:E67)>0,SUM($F$9:F67)-SUM($E$9:E67),0)) -> 
A68: 0 | G68: =IF(B68="","",IF(SUM($E$9:E68)-SUM($F$9:F68)>0,SUM($E$9:E68)-SUM($F$9:F68),0)) ->  | H68: =IF(B68="","",IF(SUM($F$9:F68)-SUM($E$9:E68)>0,SUM($F$9:F68)-SUM($E$9:E68),0)) -> 
A69: 0 | G69: =IF(B69="","",IF(SUM($E$9:E69)-SUM($F$9:F69)>0,SUM($E$9:E69)-SUM($F$9:F69),0)) ->  | H69: =IF(B69="","",IF(SUM($F$9:F69)-SUM($E$9:E69)>0,SUM($F$9:F69)-SUM($E$9:E69),0)) -> 
A70: 0 | G70: =IF(B70="","",IF(SUM($E$9:E70)-SUM($F$9:F70)>0,SUM($E$9:E70)-SUM($F$9:F70),0)) ->  | H70: =IF(B70="","",IF(SUM($F$9:F70)-SUM($E$9:E70)>0,SUM($F$9:F70)-SUM($E$9:E70),0)) -> 
A71: 0 | G71: =IF(B71="","",IF(SUM($E$9:E71)-SUM($F$9:F71)>0,SUM($E$9:E71)-SUM($F$9:F71),0)) ->  | H71: =IF(B71="","",IF(SUM($F$9:F71)-SUM($E$9:E71)>0,SUM($F$9:F71)-SUM($E$9:E71),0)) -> 
A72: 0 | G72: =IF(B72="","",IF(SUM($E$9:E72)-SUM($F$9:F72)>0,SUM($E$9:E72)-SUM($F$9:F72),0)) ->  | H72: =IF(B72="","",IF(SUM($F$9:F72)-SUM($E$9:E72)>0,SUM($F$9:F72)-SUM($E$9:E72),0)) -> 
A73: 0 | B73: =IF($A73,INDEX(MyDate,$A73,1),"") ->  | C73: =IF($A73,INDEX(MyDate,$A73,6),"") ->  | D73: =IF($A73,INDEX(MyDate,$A73,7),"") ->  | E73: =IF($A73,INDEX(MyDate,$A73,4),"") ->  | F73: =IF($A73,INDEX(MyDate,$A73,5),"") ->  | G73: =IF(B73="","",IF(SUM($E$9:E73)-SUM($F$9:F73)>0,SUM($E$9:E73)-SUM($F$9:F73),0)) ->  | H73: =IF(B73="","",IF(SUM($F$9:F73)-SUM($E$9:E73)>0,SUM($F$9:F73)-SUM($E$9:E73),0)) -> 
A74: 0 | G74: =IF(B74="","",IF(SUM($E$9:E74)-SUM($F$9:F74)>0,SUM($E$9:E74)-SUM($F$9:F74),0)) ->  | H74: =IF(B74="","",IF(SUM($F$9:F74)-SUM($E$9:E74)>0,SUM($F$9:F74)-SUM($E$9:E74),0)) -> 
A75: 0 | G75: =IF(B75="","",IF(SUM($E$9:E75)-SUM($F$9:F75)>0,SUM($E$9:E75)-SUM($F$9:F75),0)) ->  | H75: =IF(B75="","",IF(SUM($F$9:F75)-SUM($E$9:E75)>0,SUM($F$9:F75)-SUM($E$9:E75),0)) -> 
A76: 0 | G76: =IF(B76="","",IF(SUM($E$9:E76)-SUM($F$9:F76)>0,SUM($E$9:E76)-SUM($F$9:F76),0)) ->  | H76: =IF(B76="","",IF(SUM($F$9:F76)-SUM($E$9:E76)>0,SUM($F$9:F76)-SUM($E$9:E76),0)) -> 
A77: 0 | G77: =IF(B77="","",IF(SUM($E$9:E77)-SUM($F$9:F77)>0,SUM($E$9:E77)-SUM($F$9:F77),0)) ->  | H77: =IF(B77="","",IF(SUM($F$9:F77)-SUM($E$9:E77)>0,SUM($F$9:F77)-SUM($E$9:E77),0)) -> 
A78: 0 | G78: =IF(B78="","",IF(SUM($E$9:E78)-SUM($F$9:F78)>0,SUM($E$9:E78)-SUM($F$9:F78),0)) ->  | H78: =IF(B78="","",IF(SUM($F$9:F78)-SUM($E$9:E78)>0,SUM($F$9:F78)-SUM($E$9:E78),0)) -> 
A79: 0 | G79: =IF(B79="","",IF(SUM($E$9:E79)-SUM($F$9:F79)>0,SUM($E$9:E79)-SUM($F$9:F79),0)) ->  | H79: =IF(B79="","",IF(SUM($F$9:F79)-SUM($E$9:E79)>0,SUM($F$9:F79)-SUM($E$9:E79),0)) -> 
A80: 0 | G80: =IF(B80="","",IF(SUM($E$9:E80)-SUM($F$9:F80)>0,SUM($E$9:E80)-SUM($F$9:F80),0)) ->  | H80: =IF(B80="","",IF(SUM($F$9:F80)-SUM($E$9:E80)>0,SUM($F$9:F80)-SUM($E$9:E80),0)) -> 
A81: 0 | G81: =IF(B81="","",IF(SUM($E$9:E81)-SUM($F$9:F81)>0,SUM($E$9:E81)-SUM($F$9:F81),0)) ->  | H81: =IF(B81="","",IF(SUM($F$9:F81)-SUM($E$9:E81)>0,SUM($F$9:F81)-SUM($E$9:E81),0)) -> 
A82: 0 | G82: =IF(B82="","",IF(SUM($E$9:E82)-SUM($F$9:F82)>0,SUM($E$9:E82)-SUM($F$9:F82),0)) ->  | H82: =IF(B82="","",IF(SUM($F$9:F82)-SUM($E$9:E82)>0,SUM($F$9:F82)-SUM($E$9:E82),0)) -> 
A83: 0 | G83: =IF(B83="","",IF(SUM($E$9:E83)-SUM($F$9:F83)>0,SUM($E$9:E83)-SUM($F$9:F83),0)) ->  | H83: =IF(B83="","",IF(SUM($F$9:F83)-SUM($E$9:E83)>0,SUM($F$9:F83)-SUM($E$9:E83),0)) -> 
A84: 0 | G84: =IF(B84="","",IF(SUM($E$9:E84)-SUM($F$9:F84)>0,SUM($E$9:E84)-SUM($F$9:F84),0)) ->  | H84: =IF(B84="","",IF(SUM($F$9:F84)-SUM($E$9:E84)>0,SUM($F$9:F84)-SUM($E$9:E84),0)) -> 
A85: 0 | G85: =IF(B85="","",IF(SUM($E$9:E85)-SUM($F$9:F85)>0,SUM($E$9:E85)-SUM($F$9:F85),0)) ->  | H85: =IF(B85="","",IF(SUM($F$9:F85)-SUM($E$9:E85)>0,SUM($F$9:F85)-SUM($E$9:E85),0)) -> 
A86: 0 | G86: =IF(B86="","",IF(SUM($E$9:E86)-SUM($F$9:F86)>0,SUM($E$9:E86)-SUM($F$9:F86),0)) ->  | H86: =IF(B86="","",IF(SUM($F$9:F86)-SUM($E$9:E86)>0,SUM($F$9:F86)-SUM($E$9:E86),0)) -> 
A87: 0 | G87: =IF(B87="","",IF(SUM($E$9:E87)-SUM($F$9:F87)>0,SUM($E$9:E87)-SUM($F$9:F87),0)) ->  | H87: =IF(B87="","",IF(SUM($F$9:F87)-SUM($E$9:E87)>0,SUM($F$9:F87)-SUM($E$9:E87),0)) -> 
A88: 0 | G88: =IF(B88="","",IF(SUM($E$9:E88)-SUM($F$9:F88)>0,SUM($E$9:E88)-SUM($F$9:F88),0)) ->  | H88: =IF(B88="","",IF(SUM($F$9:F88)-SUM($E$9:E88)>0,SUM($F$9:F88)-SUM($E$9:E88),0)) -> 
A89: 0 | G89: =IF(B89="","",IF(SUM($E$9:E89)-SUM($F$9:F89)>0,SUM($E$9:E89)-SUM($F$9:F89),0)) ->  | H89: =IF(B89="","",IF(SUM($F$9:F89)-SUM($E$9:E89)>0,SUM($F$9:F89)-SUM($E$9:E89),0)) -> 
A90: 0 | G90: =IF(B90="","",IF(SUM($E$9:E90)-SUM($F$9:F90)>0,SUM($E$9:E90)-SUM($F$9:F90),0)) ->  | H90: =IF(B90="","",IF(SUM($F$9:F90)-SUM($E$9:E90)>0,SUM($F$9:F90)-SUM($E$9:E90),0)) -> 
A91: 0 | G91: =IF(B91="","",IF(SUM($E$9:E91)-SUM($F$9:F91)>0,SUM($E$9:E91)-SUM($F$9:F91),0)) ->  | H91: =IF(B91="","",IF(SUM($F$9:F91)-SUM($E$9:E91)>0,SUM($F$9:F91)-SUM($E$9:E91),0)) -> 
A92: 0 | G92: =IF(B92="","",IF(SUM($E$9:E92)-SUM($F$9:F92)>0,SUM($E$9:E92)-SUM($F$9:F92),0)) ->  | H92: =IF(B92="","",IF(SUM($F$9:F92)-SUM($E$9:E92)>0,SUM($F$9:F92)-SUM($E$9:E92),0)) -> 
A93: 0 | G93: =IF(B93="","",IF(SUM($E$9:E93)-SUM($F$9:F93)>0,SUM($E$9:E93)-SUM($F$9:F93),0)) ->  | H93: =IF(B93="","",IF(SUM($F$9:F93)-SUM($E$9:E93)>0,SUM($F$9:F93)-SUM($E$9:E93),0)) -> 
A94: 0 | G94: =IF(B94="","",IF(SUM($E$9:E94)-SUM($F$9:F94)>0,SUM($E$9:E94)-SUM($F$9:F94),0)) ->  | H94: =IF(B94="","",IF(SUM($F$9:F94)-SUM($E$9:E94)>0,SUM($F$9:F94)-SUM($E$9:E94),0)) -> 
A95: 0 | G95: =IF(B95="","",IF(SUM($E$9:E95)-SUM($F$9:F95)>0,SUM($E$9:E95)-SUM($F$9:F95),0)) ->  | H95: =IF(B95="","",IF(SUM($F$9:F95)-SUM($E$9:E95)>0,SUM($F$9:F95)-SUM($E$9:E95),0)) -> 
A96: 0 | G96: =IF(B96="","",IF(SUM($E$9:E96)-SUM($F$9:F96)>0,SUM($E$9:E96)-SUM($F$9:F96),0)) ->  | H96: =IF(B96="","",IF(SUM($F$9:F96)-SUM($E$9:E96)>0,SUM($F$9:F96)-SUM($E$9:E96),0)) -> 
A97: 0 | G97: =IF(B97="","",IF(SUM($E$9:E97)-SUM($F$9:F97)>0,SUM($E$9:E97)-SUM($F$9:F97),0)) ->  | H97: =IF(B97="","",IF(SUM($F$9:F97)-SUM($E$9:E97)>0,SUM($F$9:F97)-SUM($E$9:E97),0)) -> 
A98: 0 | G98: =IF(B98="","",IF(SUM($E$9:E98)-SUM($F$9:F98)>0,SUM($E$9:E98)-SUM($F$9:F98),0)) ->  | H98: =IF(B98="","",IF(SUM($F$9:F98)-SUM($E$9:E98)>0,SUM($F$9:F98)-SUM($E$9:E98),0)) -> 
A99: 0 | G99: =IF(B99="","",IF(SUM($E$9:E99)-SUM($F$9:F99)>0,SUM($E$9:E99)-SUM($F$9:F99),0)) ->  | H99: =IF(B99="","",IF(SUM($F$9:F99)-SUM($E$9:E99)>0,SUM($F$9:F99)-SUM($E$9:E99),0)) -> 
A100: 0 | G100: =IF(B100="","",IF(SUM($E$9:E100)-SUM($F$9:F100)>0,SUM($E$9:E100)-SUM($F$9:F100),0)) ->  | H100: =IF(B100="","",IF(SUM($F$9:F100)-SUM($E$9:E100)>0,SUM($F$9:F100)-SUM($E$9:E100),0)) -> 
A101: 0 | G101: =IF(B101="","",IF(SUM($E$9:E101)-SUM($F$9:F101)>0,SUM($E$9:E101)-SUM($F$9:F101),0)) ->  | H101: =IF(B101="","",IF(SUM($F$9:F101)-SUM($E$9:E101)>0,SUM($F$9:F101)-SUM($E$9:E101),0)) -> 
A102: 0 | G102: =IF(B102="","",IF(SUM($E$9:E102)-SUM($F$9:F102)>0,SUM($E$9:E102)-SUM($F$9:F102),0)) ->  | H102: =IF(B102="","",IF(SUM($F$9:F102)-SUM($E$9:E102)>0,SUM($F$9:F102)-SUM($E$9:E102),0)) -> 
A103: 0 | G103: =IF(B103="","",IF(SUM($E$9:E103)-SUM($F$9:F103)>0,SUM($E$9:E103)-SUM($F$9:F103),0)) ->  | H103: =IF(B103="","",IF(SUM($F$9:F103)-SUM($E$9:E103)>0,SUM($F$9:F103)-SUM($E$9:E103),0)) -> 
A104: 0 | G104: =IF(B104="","",IF(SUM($E$9:E104)-SUM($F$9:F104)>0,SUM($E$9:E104)-SUM($F$9:F104),0)) ->  | H104: =IF(B104="","",IF(SUM($F$9:F104)-SUM($E$9:E104)>0,SUM($F$9:F104)-SUM($E$9:E104),0)) -> 
A105: 0 | G105: =IF(B105="","",IF(SUM($E$9:E105)-SUM($F$9:F105)>0,SUM($E$9:E105)-SUM($F$9:F105),0)) ->  | H105: =IF(B105="","",IF(SUM($F$9:F105)-SUM($E$9:E105)>0,SUM($F$9:F105)-SUM($E$9:E105),0)) -> 
A106: 0 | G106: =IF(B106="","",IF(SUM($E$9:E106)-SUM($F$9:F106)>0,SUM($E$9:E106)-SUM($F$9:F106),0)) ->  | H106: =IF(B106="","",IF(SUM($F$9:F106)-SUM($E$9:E106)>0,SUM($F$9:F106)-SUM($E$9:E106),0)) -> 
A107: 0 | G107: =IF(B107="","",IF(SUM($E$9:E107)-SUM($F$9:F107)>0,SUM($E$9:E107)-SUM($F$9:F107),0)) ->  | H107: =IF(B107="","",IF(SUM($F$9:F107)-SUM($E$9:E107)>0,SUM($F$9:F107)-SUM($E$9:E107),0)) -> 
A108: 0 | G108: =IF(B108="","",IF(SUM($E$9:E108)-SUM($F$9:F108)>0,SUM($E$9:E108)-SUM($F$9:F108),0)) ->  | H108: =IF(B108="","",IF(SUM($F$9:F108)-SUM($E$9:E108)>0,SUM($F$9:F108)-SUM($E$9:E108),0)) -> 
A109: 0 | G109: =IF(B109="","",IF(SUM($E$9:E109)-SUM($F$9:F109)>0,SUM($E$9:E109)-SUM($F$9:F109),0)) ->  | H109: =IF(B109="","",IF(SUM($F$9:F109)-SUM($E$9:E109)>0,SUM($F$9:F109)-SUM($E$9:E109),0)) -> 
A110: 0 | G110: =IF(B110="","",IF(SUM($E$9:E110)-SUM($F$9:F110)>0,SUM($E$9:E110)-SUM($F$9:F110),0)) ->  | H110: =IF(B110="","",IF(SUM($F$9:F110)-SUM($E$9:E110)>0,SUM($F$9:F110)-SUM($E$9:E110),0)) -> 
A111: 0 | G111: =IF(B111="","",IF(SUM($E$9:E111)-SUM($F$9:F111)>0,SUM($E$9:E111)-SUM($F$9:F111),0)) ->  | H111: =IF(B111="","",IF(SUM($F$9:F111)-SUM($E$9:E111)>0,SUM($F$9:F111)-SUM($E$9:E111),0)) -> 
A112: 0 | G112: =IF(B112="","",IF(SUM($E$9:E112)-SUM($F$9:F112)>0,SUM($E$9:E112)-SUM($F$9:F112),0)) ->  | H112: =IF(B112="","",IF(SUM($F$9:F112)-SUM($E$9:E112)>0,SUM($F$9:F112)-SUM($E$9:E112),0)) -> 
A113: 0 | G113: =IF(B113="","",IF(SUM($E$9:E113)-SUM($F$9:F113)>0,SUM($E$9:E113)-SUM($F$9:F113),0)) ->  | H113: =IF(B113="","",IF(SUM($F$9:F113)-SUM($E$9:E113)>0,SUM($F$9:F113)-SUM($E$9:E113),0)) -> 
A114: 0 | G114: =IF(B114="","",IF(SUM($E$9:E114)-SUM($F$9:F114)>0,SUM($E$9:E114)-SUM($F$9:F114),0)) ->  | H114: =IF(B114="","",IF(SUM($F$9:F114)-SUM($E$9:E114)>0,SUM($F$9:F114)-SUM($E$9:E114),0)) -> 
A115: 0 | G115: =IF(B115="","",IF(SUM($E$9:E115)-SUM($F$9:F115)>0,SUM($E$9:E115)-SUM($F$9:F115),0)) ->  | H115: =IF(B115="","",IF(SUM($F$9:F115)-SUM($E$9:E115)>0,SUM($F$9:F115)-SUM($E$9:E115),0)) -> 
A116: 0 | G116: =IF(B116="","",IF(SUM($E$9:E116)-SUM($F$9:F116)>0,SUM($E$9:E116)-SUM($F$9:F116),0)) ->  | H116: =IF(B116="","",IF(SUM($F$9:F116)-SUM($E$9:E116)>0,SUM($F$9:F116)-SUM($E$9:E116),0)) -> 
A117: 0 | G117: =IF(B117="","",IF(SUM($E$9:E117)-SUM($F$9:F117)>0,SUM($E$9:E117)-SUM($F$9:F117),0)) ->  | H117: =IF(B117="","",IF(SUM($F$9:F117)-SUM($E$9:E117)>0,SUM($F$9:F117)-SUM($E$9:E117),0)) -> 
A118: 0 | G118: =IF(B118="","",IF(SUM($E$9:E118)-SUM($F$9:F118)>0,SUM($E$9:E118)-SUM($F$9:F118),0)) ->  | H118: =IF(B118="","",IF(SUM($F$9:F118)-SUM($E$9:E118)>0,SUM($F$9:F118)-SUM($E$9:E118),0)) -> 
A119: 0 | G119: =IF(B119="","",IF(SUM($E$9:E119)-SUM($F$9:F119)>0,SUM($E$9:E119)-SUM($F$9:F119),0)) ->  | H119: =IF(B119="","",IF(SUM($F$9:F119)-SUM($E$9:E119)>0,SUM($F$9:F119)-SUM($E$9:E119),0)) -> 
A120: 0 | G120: =IF(B120="","",IF(SUM($E$9:E120)-SUM($F$9:F120)>0,SUM($E$9:E120)-SUM($F$9:F120),0)) ->  | H120: =IF(B120="","",IF(SUM($F$9:F120)-SUM($E$9:E120)>0,SUM($F$9:F120)-SUM($E$9:E120),0)) -> 
A121: 0 | G121: =IF(B121="","",IF(SUM($E$9:E121)-SUM($F$9:F121)>0,SUM($E$9:E121)-SUM($F$9:F121),0)) ->  | H121: =IF(B121="","",IF(SUM($F$9:F121)-SUM($E$9:E121)>0,SUM($F$9:F121)-SUM($E$9:E121),0)) -> 
A122: 0 | G122: =IF(B122="","",IF(SUM($E$9:E122)-SUM($F$9:F122)>0,SUM($E$9:E122)-SUM($F$9:F122),0)) ->  | H122: =IF(B122="","",IF(SUM($F$9:F122)-SUM($E$9:E122)>0,SUM($F$9:F122)-SUM($E$9:E122),0)) -> 
A123: 0 | G123: =IF(B123="","",IF(SUM($E$9:E123)-SUM($F$9:F123)>0,SUM($E$9:E123)-SUM($F$9:F123),0)) ->  | H123: =IF(B123="","",IF(SUM($F$9:F123)-SUM($E$9:E123)>0,SUM($F$9:F123)-SUM($E$9:E123),0)) -> 
A124: 0 | G124: =IF(B124="","",IF(SUM($E$9:E124)-SUM($F$9:F124)>0,SUM($E$9:E124)-SUM($F$9:F124),0)) ->  | H124: =IF(B124="","",IF(SUM($F$9:F124)-SUM($E$9:E124)>0,SUM($F$9:F124)-SUM($E$9:E124),0)) -> 
A125: 0 | G125: =IF(B125="","",IF(SUM($E$9:E125)-SUM($F$9:F125)>0,SUM($E$9:E125)-SUM($F$9:F125),0)) ->  | H125: =IF(B125="","",IF(SUM($F$9:F125)-SUM($E$9:E125)>0,SUM($F$9:F125)-SUM($E$9:E125),0)) -> 
A126: 0 | G126: =IF(B126="","",IF(SUM($E$9:E126)-SUM($F$9:F126)>0,SUM($E$9:E126)-SUM($F$9:F126),0)) ->  | H126: =IF(B126="","",IF(SUM($F$9:F126)-SUM($E$9:E126)>0,SUM($F$9:F126)-SUM($E$9:E126),0)) -> 
A127: 0 | G127: =IF(B127="","",IF(SUM($E$9:E127)-SUM($F$9:F127)>0,SUM($E$9:E127)-SUM($F$9:F127),0)) ->  | H127: =IF(B127="","",IF(SUM($F$9:F127)-SUM($E$9:E127)>0,SUM($F$9:F127)-SUM($E$9:E127),0)) -> 
A128: 0 | G128: =IF(B128="","",IF(SUM($E$9:E128)-SUM($F$9:F128)>0,SUM($E$9:E128)-SUM($F$9:F128),0)) ->  | H128: =IF(B128="","",IF(SUM($F$9:F128)-SUM($E$9:E128)>0,SUM($F$9:F128)-SUM($E$9:E128),0)) -> 
A129: 0 | G129: =IF(B129="","",IF(SUM($E$9:E129)-SUM($F$9:F129)>0,SUM($E$9:E129)-SUM($F$9:F129),0)) ->  | H129: =IF(B129="","",IF(SUM($F$9:F129)-SUM($E$9:E129)>0,SUM($F$9:F129)-SUM($E$9:E129),0)) -> 
A130: 0 | G130: =IF(B130="","",IF(SUM($E$9:E130)-SUM($F$9:F130)>0,SUM($E$9:E130)-SUM($F$9:F130),0)) ->  | H130: =IF(B130="","",IF(SUM($F$9:F130)-SUM($E$9:E130)>0,SUM($F$9:F130)-SUM($E$9:E130),0)) -> 
A131: 0 | G131: =IF(B131="","",IF(SUM($E$9:E131)-SUM($F$9:F131)>0,SUM($E$9:E131)-SUM($F$9:F131),0)) ->  | H131: =IF(B131="","",IF(SUM($F$9:F131)-SUM($E$9:E131)>0,SUM($F$9:F131)-SUM($E$9:E131),0)) -> 
A132: 0 | G132: =IF(B132="","",IF(SUM($E$9:E132)-SUM($F$9:F132)>0,SUM($E$9:E132)-SUM($F$9:F132),0)) ->  | H132: =IF(B132="","",IF(SUM($F$9:F132)-SUM($E$9:E132)>0,SUM($F$9:F132)-SUM($E$9:E132),0)) -> 
A133: 0 | G133: =IF(B133="","",IF(SUM($E$9:E133)-SUM($F$9:F133)>0,SUM($E$9:E133)-SUM($F$9:F133),0)) ->  | H133: =IF(B133="","",IF(SUM($F$9:F133)-SUM($E$9:E133)>0,SUM($F$9:F133)-SUM($E$9:E133),0)) -> 
A134: 0 | G134: =IF(B134="","",IF(SUM($E$9:E134)-SUM($F$9:F134)>0,SUM($E$9:E134)-SUM($F$9:F134),0)) ->  | H134: =IF(B134="","",IF(SUM($F$9:F134)-SUM($E$9:E134)>0,SUM($F$9:F134)-SUM($E$9:E134),0)) -> 
A135: 0 | G135: =IF(B135="","",IF(SUM($E$9:E135)-SUM($F$9:F135)>0,SUM($E$9:E135)-SUM($F$9:F135),0)) ->  | H135: =IF(B135="","",IF(SUM($F$9:F135)-SUM($E$9:E135)>0,SUM($F$9:F135)-SUM($E$9:E135),0)) -> 
A136: 0 | G136: =IF(B136="","",IF(SUM($E$9:E136)-SUM($F$9:F136)>0,SUM($E$9:E136)-SUM($F$9:F136),0)) ->  | H136: =IF(B136="","",IF(SUM($F$9:F136)-SUM($E$9:E136)>0,SUM($F$9:F136)-SUM($E$9:E136),0)) -> 
A137: 0 | B137: =IF($A137,INDEX(MyDate,$A137,1),"") ->  | C137: =IF($A137,INDEX(MyDate,$A137,6),"") ->  | D137: =IF($A137,INDEX(MyDate,$A137,7),"") ->  | E137: =IF($A137,INDEX(MyDate,$A137,4),"") ->  | F137: =IF($A137,INDEX(MyDate,$A137,5),"") ->  | G137: =IF(B137="","",IF(SUM($E$9:E137)-SUM($F$9:F137)>0,SUM($E$9:E137)-SUM($F$9:F137),0)) ->  | H137: =IF(B137="","",IF(SUM($F$9:F137)-SUM($E$9:E137)>0,SUM($F$9:F137)-SUM($E$9:E137),0)) -> 
A138: 0 | G138: =IF(B138="","",IF(SUM($E$9:E138)-SUM($F$9:F138)>0,SUM($E$9:E138)-SUM($F$9:F138),0)) ->  | H138: =IF(B138="","",IF(SUM($F$9:F138)-SUM($E$9:E138)>0,SUM($F$9:F138)-SUM($E$9:E138),0)) -> 
A139: 0 | G139: =IF(B139="","",IF(SUM($E$9:E139)-SUM($F$9:F139)>0,SUM($E$9:E139)-SUM($F$9:F139),0)) ->  | H139: =IF(B139="","",IF(SUM($F$9:F139)-SUM($E$9:E139)>0,SUM($F$9:F139)-SUM($E$9:E139),0)) -> 
A140: 0 | G140: =IF(B140="","",IF(SUM($E$9:E140)-SUM($F$9:F140)>0,SUM($E$9:E140)-SUM($F$9:F140),0)) ->  | H140: =IF(B140="","",IF(SUM($F$9:F140)-SUM($E$9:E140)>0,SUM($F$9:F140)-SUM($E$9:E140),0)) -> 
A141: 0 | G141: =IF(B141="","",IF(SUM($E$9:E141)-SUM($F$9:F141)>0,SUM($E$9:E141)-SUM($F$9:F141),0)) ->  | H141: =IF(B141="","",IF(SUM($F$9:F141)-SUM($E$9:E141)>0,SUM($F$9:F141)-SUM($E$9:E141),0)) -> 
A142: 0 | G142: =IF(B142="","",IF(SUM($E$9:E142)-SUM($F$9:F142)>0,SUM($E$9:E142)-SUM($F$9:F142),0)) ->  | H142: =IF(B142="","",IF(SUM($F$9:F142)-SUM($E$9:E142)>0,SUM($F$9:F142)-SUM($E$9:E142),0)) -> 
A143: 0 | G143: =IF(B143="","",IF(SUM($E$9:E143)-SUM($F$9:F143)>0,SUM($E$9:E143)-SUM($F$9:F143),0)) ->  | H143: =IF(B143="","",IF(SUM($F$9:F143)-SUM($E$9:E143)>0,SUM($F$9:F143)-SUM($E$9:E143),0)) -> 
A144: 0 | G144: =IF(B144="","",IF(SUM($E$9:E144)-SUM($F$9:F144)>0,SUM($E$9:E144)-SUM($F$9:F144),0)) ->  | H144: =IF(B144="","",IF(SUM($F$9:F144)-SUM($E$9:E144)>0,SUM($F$9:F144)-SUM($E$9:E144),0)) -> 
A145: 0 | G145: =IF(B145="","",IF(SUM($E$9:E145)-SUM($F$9:F145)>0,SUM($E$9:E145)-SUM($F$9:F145),0)) ->  | H145: =IF(B145="","",IF(SUM($F$9:F145)-SUM($E$9:E145)>0,SUM($F$9:F145)-SUM($E$9:E145),0)) -> 
A146: 0 | G146: =IF(B146="","",IF(SUM($E$9:E146)-SUM($F$9:F146)>0,SUM($E$9:E146)-SUM($F$9:F146),0)) ->  | H146: =IF(B146="","",IF(SUM($F$9:F146)-SUM($E$9:E146)>0,SUM($F$9:F146)-SUM($E$9:E146),0)) -> 
A147: 0 | G147: =IF(B147="","",IF(SUM($E$9:E147)-SUM($F$9:F147)>0,SUM($E$9:E147)-SUM($F$9:F147),0)) ->  | H147: =IF(B147="","",IF(SUM($F$9:F147)-SUM($E$9:E147)>0,SUM($F$9:F147)-SUM($E$9:E147),0)) -> 
A148: 0 | G148: =IF(B148="","",IF(SUM($E$9:E148)-SUM($F$9:F148)>0,SUM($E$9:E148)-SUM($F$9:F148),0)) ->  | H148: =IF(B148="","",IF(SUM($F$9:F148)-SUM($E$9:E148)>0,SUM($F$9:F148)-SUM($E$9:E148),0)) -> 
A149: 0 | G149: =IF(B149="","",IF(SUM($E$9:E149)-SUM($F$9:F149)>0,SUM($E$9:E149)-SUM($F$9:F149),0)) ->  | H149: =IF(B149="","",IF(SUM($F$9:F149)-SUM($E$9:E149)>0,SUM($F$9:F149)-SUM($E$9:E149),0)) -> 
A150: 0 | G150: =IF(B150="","",IF(SUM($E$9:E150)-SUM($F$9:F150)>0,SUM($E$9:E150)-SUM($F$9:F150),0)) ->  | H150: =IF(B150="","",IF(SUM($F$9:F150)-SUM($E$9:E150)>0,SUM($F$9:F150)-SUM($E$9:E150),0)) -> 
A151: 0 | G151: =IF(B151="","",IF(SUM($E$9:E151)-SUM($F$9:F151)>0,SUM($E$9:E151)-SUM($F$9:F151),0)) ->  | H151: =IF(B151="","",IF(SUM($F$9:F151)-SUM($E$9:E151)>0,SUM($F$9:F151)-SUM($E$9:E151),0)) -> 
A152: 0 | G152: =IF(B152="","",IF(SUM($E$9:E152)-SUM($F$9:F152)>0,SUM($E$9:E152)-SUM($F$9:F152),0)) ->  | H152: =IF(B152="","",IF(SUM($F$9:F152)-SUM($E$9:E152)>0,SUM($F$9:F152)-SUM($E$9:E152),0)) -> 
A153: 0 | G153: =IF(B153="","",IF(SUM($E$9:E153)-SUM($F$9:F153)>0,SUM($E$9:E153)-SUM($F$9:F153),0)) ->  | H153: =IF(B153="","",IF(SUM($F$9:F153)-SUM($E$9:E153)>0,SUM($F$9:F153)-SUM($E$9:E153),0)) -> 
A154: 0 | G154: =IF(B154="","",IF(SUM($E$9:E154)-SUM($F$9:F154)>0,SUM($E$9:E154)-SUM($F$9:F154),0)) ->  | H154: =IF(B154="","",IF(SUM($F$9:F154)-SUM($E$9:E154)>0,SUM($F$9:F154)-SUM($E$9:E154),0)) -> 
A155: 0 | G155: =IF(B155="","",IF(SUM($E$9:E155)-SUM($F$9:F155)>0,SUM($E$9:E155)-SUM($F$9:F155),0)) ->  | H155: =IF(B155="","",IF(SUM($F$9:F155)-SUM($E$9:E155)>0,SUM($F$9:F155)-SUM($E$9:E155),0)) -> 
A156: 0 | G156: =IF(B156="","",IF(SUM($E$9:E156)-SUM($F$9:F156)>0,SUM($E$9:E156)-SUM($F$9:F156),0)) ->  | H156: =IF(B156="","",IF(SUM($F$9:F156)-SUM($E$9:E156)>0,SUM($F$9:F156)-SUM($E$9:E156),0)) -> 
A157: 0 | G157: =IF(B157="","",IF(SUM($E$9:E157)-SUM($F$9:F157)>0,SUM($E$9:E157)-SUM($F$9:F157),0)) ->  | H157: =IF(B157="","",IF(SUM($F$9:F157)-SUM($E$9:E157)>0,SUM($F$9:F157)-SUM($E$9:E157),0)) -> 
A158: 0 | G158: =IF(B158="","",IF(SUM($E$9:E158)-SUM($F$9:F158)>0,SUM($E$9:E158)-SUM($F$9:F158),0)) ->  | H158: =IF(B158="","",IF(SUM($F$9:F158)-SUM($E$9:E158)>0,SUM($F$9:F158)-SUM($E$9:E158),0)) -> 
A159: 0 | G159: =IF(B159="","",IF(SUM($E$9:E159)-SUM($F$9:F159)>0,SUM($E$9:E159)-SUM($F$9:F159),0)) ->  | H159: =IF(B159="","",IF(SUM($F$9:F159)-SUM($E$9:E159)>0,SUM($F$9:F159)-SUM($E$9:E159),0)) -> 
A160: 0 | G160: =IF(B160="","",IF(SUM($E$9:E160)-SUM($F$9:F160)>0,SUM($E$9:E160)-SUM($F$9:F160),0)) ->  | H160: =IF(B160="","",IF(SUM($F$9:F160)-SUM($E$9:E160)>0,SUM($F$9:F160)-SUM($E$9:E160),0)) -> 
A161: 0 | G161: =IF(B161="","",IF(SUM($E$9:E161)-SUM($F$9:F161)>0,SUM($E$9:E161)-SUM($F$9:F161),0)) ->  | H161: =IF(B161="","",IF(SUM($F$9:F161)-SUM($E$9:E161)>0,SUM($F$9:F161)-SUM($E$9:E161),0)) -> 
A162: 0 | G162: =IF(B162="","",IF(SUM($E$9:E162)-SUM($F$9:F162)>0,SUM($E$9:E162)-SUM($F$9:F162),0)) ->  | H162: =IF(B162="","",IF(SUM($F$9:F162)-SUM($E$9:E162)>0,SUM($F$9:F162)-SUM($E$9:E162),0)) -> 
A163: 0 | G163: =IF(B163="","",IF(SUM($E$9:E163)-SUM($F$9:F163)>0,SUM($E$9:E163)-SUM($F$9:F163),0)) ->  | H163: =IF(B163="","",IF(SUM($F$9:F163)-SUM($E$9:E163)>0,SUM($F$9:F163)-SUM($E$9:E163),0)) -> 
A164: 0 | G164: =IF(B164="","",IF(SUM($E$9:E164)-SUM($F$9:F164)>0,SUM($E$9:E164)-SUM($F$9:F164),0)) ->  | H164: =IF(B164="","",IF(SUM($F$9:F164)-SUM($E$9:E164)>0,SUM($F$9:F164)-SUM($E$9:E164),0)) -> 
A165: 0 | G165: =IF(B165="","",IF(SUM($E$9:E165)-SUM($F$9:F165)>0,SUM($E$9:E165)-SUM($F$9:F165),0)) ->  | H165: =IF(B165="","",IF(SUM($F$9:F165)-SUM($E$9:E165)>0,SUM($F$9:F165)-SUM($E$9:E165),0)) -> 
A166: 0 | G166: =IF(B166="","",IF(SUM($E$9:E166)-SUM($F$9:F166)>0,SUM($E$9:E166)-SUM($F$9:F166),0)) ->  | H166: =IF(B166="","",IF(SUM($F$9:F166)-SUM($E$9:E166)>0,SUM($F$9:F166)-SUM($E$9:E166),0)) -> 
A167: 0 | G167: =IF(B167="","",IF(SUM($E$9:E167)-SUM($F$9:F167)>0,SUM($E$9:E167)-SUM($F$9:F167),0)) ->  | H167: =IF(B167="","",IF(SUM($F$9:F167)-SUM($E$9:E167)>0,SUM($F$9:F167)-SUM($E$9:E167),0)) -> 
A168: 0 | G168: =IF(B168="","",IF(SUM($E$9:E168)-SUM($F$9:F168)>0,SUM($E$9:E168)-SUM($F$9:F168),0)) ->  | H168: =IF(B168="","",IF(SUM($F$9:F168)-SUM($E$9:E168)>0,SUM($F$9:F168)-SUM($E$9:E168),0)) -> 
A169: 0 | G169: =IF(B169="","",IF(SUM($E$9:E169)-SUM($F$9:F169)>0,SUM($E$9:E169)-SUM($F$9:F169),0)) ->  | H169: =IF(B169="","",IF(SUM($F$9:F169)-SUM($E$9:E169)>0,SUM($F$9:F169)-SUM($E$9:E169),0)) -> 
A170: 0 | G170: =IF(B170="","",IF(SUM($E$9:E170)-SUM($F$9:F170)>0,SUM($E$9:E170)-SUM($F$9:F170),0)) ->  | H170: =IF(B170="","",IF(SUM($F$9:F170)-SUM($E$9:E170)>0,SUM($F$9:F170)-SUM($E$9:E170),0)) -> 
A171: 0 | G171: =IF(B171="","",IF(SUM($E$9:E171)-SUM($F$9:F171)>0,SUM($E$9:E171)-SUM($F$9:F171),0)) ->  | H171: =IF(B171="","",IF(SUM($F$9:F171)-SUM($E$9:E171)>0,SUM($F$9:F171)-SUM($E$9:E171),0)) -> 
A172: 0 | G172: =IF(B172="","",IF(SUM($E$9:E172)-SUM($F$9:F172)>0,SUM($E$9:E172)-SUM($F$9:F172),0)) ->  | H172: =IF(B172="","",IF(SUM($F$9:F172)-SUM($E$9:E172)>0,SUM($F$9:F172)-SUM($E$9:E172),0)) -> 
A173: 0 | G173: =IF(B173="","",IF(SUM($E$9:E173)-SUM($F$9:F173)>0,SUM($E$9:E173)-SUM($F$9:F173),0)) ->  | H173: =IF(B173="","",IF(SUM($F$9:F173)-SUM($E$9:E173)>0,SUM($F$9:F173)-SUM($E$9:E173),0)) -> 
A174: 0 | G174: =IF(B174="","",IF(SUM($E$9:E174)-SUM($F$9:F174)>0,SUM($E$9:E174)-SUM($F$9:F174),0)) ->  | H174: =IF(B174="","",IF(SUM($F$9:F174)-SUM($E$9:E174)>0,SUM($F$9:F174)-SUM($E$9:E174),0)) -> 
A175: 0 | G175: =IF(B175="","",IF(SUM($E$9:E175)-SUM($F$9:F175)>0,SUM($E$9:E175)-SUM($F$9:F175),0)) ->  | H175: =IF(B175="","",IF(SUM($F$9:F175)-SUM($E$9:E175)>0,SUM($F$9:F175)-SUM($E$9:E175),0)) -> 
A176: 0 | G176: =IF(B176="","",IF(SUM($E$9:E176)-SUM($F$9:F176)>0,SUM($E$9:E176)-SUM($F$9:F176),0)) ->  | H176: =IF(B176="","",IF(SUM($F$9:F176)-SUM($E$9:E176)>0,SUM($F$9:F176)-SUM($E$9:E176),0)) -> 
A177: 0 | G177: =IF(B177="","",IF(SUM($E$9:E177)-SUM($F$9:F177)>0,SUM($E$9:E177)-SUM($F$9:F177),0)) ->  | H177: =IF(B177="","",IF(SUM($F$9:F177)-SUM($E$9:E177)>0,SUM($F$9:F177)-SUM($E$9:E177),0)) -> 
A178: 0 | G178: =IF(B178="","",IF(SUM($E$9:E178)-SUM($F$9:F178)>0,SUM($E$9:E178)-SUM($F$9:F178),0)) ->  | H178: =IF(B178="","",IF(SUM($F$9:F178)-SUM($E$9:E178)>0,SUM($F$9:F178)-SUM($E$9:E178),0)) -> 
A179: 0 | G179: =IF(B179="","",IF(SUM($E$9:E179)-SUM($F$9:F179)>0,SUM($E$9:E179)-SUM($F$9:F179),0)) ->  | H179: =IF(B179="","",IF(SUM($F$9:F179)-SUM($E$9:E179)>0,SUM($F$9:F179)-SUM($E$9:E179),0)) -> 
A180: 0 | G180: =IF(B180="","",IF(SUM($E$9:E180)-SUM($F$9:F180)>0,SUM($E$9:E180)-SUM($F$9:F180),0)) ->  | H180: =IF(B180="","",IF(SUM($F$9:F180)-SUM($E$9:E180)>0,SUM($F$9:F180)-SUM($E$9:E180),0)) -> 
A181: 0 | G181: =IF(B181="","",IF(SUM($E$9:E181)-SUM($F$9:F181)>0,SUM($E$9:E181)-SUM($F$9:F181),0)) ->  | H181: =IF(B181="","",IF(SUM($F$9:F181)-SUM($E$9:E181)>0,SUM($F$9:F181)-SUM($E$9:E181),0)) -> 
A182: 0 | G182: =IF(B182="","",IF(SUM($E$9:E182)-SUM($F$9:F182)>0,SUM($E$9:E182)-SUM($F$9:F182),0)) ->  | H182: =IF(B182="","",IF(SUM($F$9:F182)-SUM($E$9:E182)>0,SUM($F$9:F182)-SUM($E$9:E182),0)) -> 
A183: 0 | G183: =IF(B183="","",IF(SUM($E$9:E183)-SUM($F$9:F183)>0,SUM($E$9:E183)-SUM($F$9:F183),0)) ->  | H183: =IF(B183="","",IF(SUM($F$9:F183)-SUM($E$9:E183)>0,SUM($F$9:F183)-SUM($E$9:E183),0)) -> 
A184: 0 | G184: =IF(B184="","",IF(SUM($E$9:E184)-SUM($F$9:F184)>0,SUM($E$9:E184)-SUM($F$9:F184),0)) ->  | H184: =IF(B184="","",IF(SUM($F$9:F184)-SUM($E$9:E184)>0,SUM($F$9:F184)-SUM($E$9:E184),0)) -> 
A185: 0 | G185: =IF(B185="","",IF(SUM($E$9:E185)-SUM($F$9:F185)>0,SUM($E$9:E185)-SUM($F$9:F185),0)) ->  | H185: =IF(B185="","",IF(SUM($F$9:F185)-SUM($E$9:E185)>0,SUM($F$9:F185)-SUM($E$9:E185),0)) -> 
A186: 0 | G186: =IF(B186="","",IF(SUM($E$9:E186)-SUM($F$9:F186)>0,SUM($E$9:E186)-SUM($F$9:F186),0)) ->  | H186: =IF(B186="","",IF(SUM($F$9:F186)-SUM($E$9:E186)>0,SUM($F$9:F186)-SUM($E$9:E186),0)) -> 
A187: 0 | G187: =IF(B187="","",IF(SUM($E$9:E187)-SUM($F$9:F187)>0,SUM($E$9:E187)-SUM($F$9:F187),0)) ->  | H187: =IF(B187="","",IF(SUM($F$9:F187)-SUM($E$9:E187)>0,SUM($F$9:F187)-SUM($E$9:E187),0)) -> 
A188: 0 | G188: =IF(B188="","",IF(SUM($E$9:E188)-SUM($F$9:F188)>0,SUM($E$9:E188)-SUM($F$9:F188),0)) ->  | H188: =IF(B188="","",IF(SUM($F$9:F188)-SUM($E$9:E188)>0,SUM($F$9:F188)-SUM($E$9:E188),0)) -> 
A189: 0 | G189: =IF(B189="","",IF(SUM($E$9:E189)-SUM($F$9:F189)>0,SUM($E$9:E189)-SUM($F$9:F189),0)) ->  | H189: =IF(B189="","",IF(SUM($F$9:F189)-SUM($E$9:E189)>0,SUM($F$9:F189)-SUM($E$9:E189),0)) -> 
A190: 0 | G190: =IF(B190="","",IF(SUM($E$9:E190)-SUM($F$9:F190)>0,SUM($E$9:E190)-SUM($F$9:F190),0)) ->  | H190: =IF(B190="","",IF(SUM($F$9:F190)-SUM($E$9:E190)>0,SUM($F$9:F190)-SUM($E$9:E190),0)) -> 
A191: 0 | G191: =IF(B191="","",IF(SUM($E$9:E191)-SUM($F$9:F191)>0,SUM($E$9:E191)-SUM($F$9:F191),0)) ->  | H191: =IF(B191="","",IF(SUM($F$9:F191)-SUM($E$9:E191)>0,SUM($F$9:F191)-SUM($E$9:E191),0)) -> 
A192: 0 | G192: =IF(B192="","",IF(SUM($E$9:E192)-SUM($F$9:F192)>0,SUM($E$9:E192)-SUM($F$9:F192),0)) ->  | H192: =IF(B192="","",IF(SUM($F$9:F192)-SUM($E$9:E192)>0,SUM($F$9:F192)-SUM($E$9:E192),0)) -> 
A193: 0 | G193: =IF(B193="","",IF(SUM($E$9:E193)-SUM($F$9:F193)>0,SUM($E$9:E193)-SUM($F$9:F193),0)) ->  | H193: =IF(B193="","",IF(SUM($F$9:F193)-SUM($E$9:E193)>0,SUM($F$9:F193)-SUM($E$9:E193),0)) -> 
A194: 0 | G194: =IF(B194="","",IF(SUM($E$9:E194)-SUM($F$9:F194)>0,SUM($E$9:E194)-SUM($F$9:F194),0)) ->  | H194: =IF(B194="","",IF(SUM($F$9:F194)-SUM($E$9:E194)>0,SUM($F$9:F194)-SUM($E$9:E194),0)) -> 
A195: 0 | G195: =IF(B195="","",IF(SUM($E$9:E195)-SUM($F$9:F195)>0,SUM($E$9:E195)-SUM($F$9:F195),0)) ->  | H195: =IF(B195="","",IF(SUM($F$9:F195)-SUM($E$9:E195)>0,SUM($F$9:F195)-SUM($E$9:E195),0)) -> 
A196: 0 | G196: =IF(B196="","",IF(SUM($E$9:E196)-SUM($F$9:F196)>0,SUM($E$9:E196)-SUM($F$9:F196),0)) ->  | H196: =IF(B196="","",IF(SUM($F$9:F196)-SUM($E$9:E196)>0,SUM($F$9:F196)-SUM($E$9:E196),0)) -> 
A197: 0 | G197: =IF(B197="","",IF(SUM($E$9:E197)-SUM($F$9:F197)>0,SUM($E$9:E197)-SUM($F$9:F197),0)) ->  | H197: =IF(B197="","",IF(SUM($F$9:F197)-SUM($E$9:E197)>0,SUM($F$9:F197)-SUM($E$9:E197),0)) -> 
A198: 0 | G198: =IF(B198="","",IF(SUM($E$9:E198)-SUM($F$9:F198)>0,SUM($E$9:E198)-SUM($F$9:F198),0)) ->  | H198: =IF(B198="","",IF(SUM($F$9:F198)-SUM($E$9:E198)>0,SUM($F$9:F198)-SUM($E$9:E198),0)) -> 
A199: 0 | G199: =IF(B199="","",IF(SUM($E$9:E199)-SUM($F$9:F199)>0,SUM($E$9:E199)-SUM($F$9:F199),0)) ->  | H199: =IF(B199="","",IF(SUM($F$9:F199)-SUM($E$9:E199)>0,SUM($F$9:F199)-SUM($E$9:E199),0)) -> 
A200: 0 | G200: =IF(B200="","",IF(SUM($E$9:E200)-SUM($F$9:F200)>0,SUM($E$9:E200)-SUM($F$9:F200),0)) ->  | H200: =IF(B200="","",IF(SUM($F$9:F200)-SUM($E$9:E200)>0,SUM($F$9:F200)-SUM($E$9:E200),0)) -> 
A201: 0 | B201: =IF($A201,INDEX(MyDate,$A201,1),"") ->  | C201: =IF($A201,INDEX(MyDate,$A201,6),"") ->  | D201: =IF($A201,INDEX(MyDate,$A201,7),"") ->  | E201: =IF($A201,INDEX(MyDate,$A201,4),"") ->  | F201: =IF($A201,INDEX(MyDate,$A201,5),"") ->  | G201: =IF(B201="","",IF(SUM($E$9:E201)-SUM($F$9:F201)>0,SUM($E$9:E201)-SUM($F$9:F201),0)) ->  | H201: =IF(B201="","",IF(SUM($F$9:F201)-SUM($E$9:E201)>0,SUM($F$9:F201)-SUM($E$9:E201),0)) -> 
... 823 more rows
